Workbook

Sheet RESUMO
B2: Ministério do Desenvolvimento Regional - MDR
B3: Companhia de Desenvolvimento dos Vales do São Francisco e do Parnaíba
B5: RESUMO
A7: OBJETO: FORNECIMENTO, TRANSPORTE, INSTALAÇÃO E HOMOLOGAÇÃO, POR SISTEMA DE REGISTRO DE PREÇOS (SRP), DE SISTEMAS DE GERAÇÃO DE ENERGIA SOLAR FOTOVOLTAICA ON-GRID, DESTINADOS A ATENDER MUNICÍPIOS DA ÁREA DE ATUAÇÃO DA 11ª SUPERINTENDÊNCIA REGIONAL DA CODEVASF NO ESTADO DO AMAPÁ
A10: GRUPO | B10: ITEM | C10: SERVIÇO | I10: QUANTIDADE | K10: VALORES (R$)
K11: VALOR UNITÁRIO (R$) | M11: VALOR TOTAL POR ITEM (R$) | O11: VALOR TOTAL POR GRUPO (R$)
A12: 1 | B12: 1 | C12: SISTEMA DE GERAÇÃO FOTOVOLTAICA ON-GRID, COM ESTRUTURA PARA SOLO, COM POTÊNCIA MÍNIMA DE 4,5 KWP | I12: 45
B14: 2 | C14: SERVIÇOS COMPLEMENTARES AO SISTEMA DE GERAÇÃO DE 4,5 KWP | I14: 45
A15: 2 | B15: 3 | C15: SISTEMA DE GERAÇÃO FOTOVOLTAICA ON-GRID, COM ESTRUTURA PARA SOLO, COM POTÊNCIA MÍNIMA DE 9,0 KWP | I15: 30
B17: 4 | C17: SERVIÇOS COMPLEMENTARES AO SISTEMA DE GERAÇÃO DE 9,0 KWP | I17: 30
A18: 3 | B18: 5 | C18: SISTEMA DE GERAÇÃO FOTOVOLTAICA ON-GRID, COM ESTRUTURA PARA SOLO, COM POTÊNCIA MÍNIMA DE 13,5 KWP | I18: 15
B20: 6 | C20: SERVIÇOS COMPLEMENTARES AO SISTEMA DE GERAÇÃO DE 13,5 KWP | I20: 15
A21: 4 | B21: 7 | C21: SISTEMA DE GERAÇÃO FOTOVOLTAICA ON-GRID, COM ESTRUTURA PARA SOLO, COM POTÊNCIA MÍNIMA DE 18,0 KWP | I21: 10
B23: 8 | C23: SERVIÇOS COMPLEMENTARES AO SISTEMA DE GERAÇÃO DE 18,0 KWP | I23: 10
A24: VALOR TOTAL | O24: =TRUNC(SUM(O12:P23),2) -> 0

Sheet SINTÉTICO
D2: Ministério do Desenvolvimento Regional - MDR
D3: Companhia de Desenvolvimento dos Vales do São Francisco e do Parnaíba
A5: ORÇAMENTO SINTÉTICO
A7: OBJETO: FORNECIMENTO, TRANSPORTE, INSTALAÇÃO E HOMOLOGAÇÃO, POR SISTEMA DE REGISTRO DE PREÇOS (SRP), DE SISTEMAS DE GERAÇÃO DE ENERGIA SOLAR FOTOVOLTAICA ON-GRID, DESTINADOS A ATENDER MUNICÍPIOS DA ÁREA DE ATUAÇÃO DA 11ª SUPERINTENDÊNCIA REGIONAL DA CODEVASF NO ESTADO DO AMAPÁ
A10: ENCARGOS SOCIAIS | D10: HORISTA | E10: MENSALISTA | G10: BDI | I10: BANCO DE DADOS:
A12: ITEM | B12: CÓDIGO | C12: FONTE | D12: DESCRIÇÃO DOS SERVIÇOS | E12: UND. | F12: QUANT. UNITÁRIA | G12: QUANT. TOTAL | H12: PREÇO UNITÁRIO S/BDI | I12: PREÇO UNITÁRIO C/ BDI | J12: VALOR UNITÁRIO C/BDI | K12: VALOR TOTAL C/ BDI
A13: 1 | D13: SISTEMA DE GERAÇÃO FOTOVOLTAICA ON-GRID, COM ESTRUTURA PARA SOLO, COM POTÊNCIA MÍNIMA DE 4,5 KWP
A14: 1.1 | B14: - | C14: COTAÇÃO | D14: SISTEMA DE GERAÇÃO DE ENERGIA SOLAR, COM ESTRUTURA PARA SOLO, COM POTÊNCIA MÍNIMA DE 4,5 KWP, SENDO CAPAZ DE GERAR NO MÍNIMO 500 KWH/MÊS POR UM PERÍODO MÍNIMO DE 12 MESES. INCLUINDO FORNECIMENTO, TRANSPORTE, INSTALAÇÃO E HOMOLOGAÇÃO, LOGOMARCA NO MODELO DA CODEVASF, E TODOS OS MATERIAIS E EQUIPAMENTOS NECESSÁRIOS À PERFEITA EXECUÇÃO DOS SERVIÇOS, DESTINADOS A ATENDER TODOS OS MUNICÍPIOS DA ÁREA DE ATUAÇÃO DA 11ª SUPERINTENDÊNCIA REGIONAL DA CODEVASF, NO ESTADO DO AMAPÁ | E14: UND. | F14: 1 | G14: 45 | H14: - | K14: =TRUNC(G14*I14,2) -> 0
A15: 2 | D15: SERVIÇOS COMPLEMENTARES AO SISTEMA DE GERAÇÃO DE 4,5 KWP
A16: 2.1 | B16: - | C16: CP-01 | D16: TRANSPORTE DE MÃO DE OBRA, MATERIAIS E EQUIPAMENTOS PARA EXECUÇÃO DOS SERVIÇOS COMPLEMENTARES | E16: KM | F16: 203.97 | G16: =F16*45 -> 9178.65 | I16: =TRUNC(((H16*24.2%)+H16),2) -> 0 | J16: =TRUNC(F16*I16,2) -> 0 | K16: =TRUNC(G16*I16,2) -> 0
A17: 2.2 | B17: - | C17: CP-02 | D17: CERCA COM MOURÕES DE CONCRETO, RETO, H=2,30 M, ESPAÇAMENTO DE 2,5 M, CRAVADOS 0,5 M, ESCORAS DE 10 X 10 CM NOS CANTOS, COM 8 FIOS DE ARAME FARPADO Nº 14 CLASSE 250 - FORNECIMENTO E INSTALAÇÃO | E17: M | F17: 29.22 | G17: =F17*45 -> 1314.9 | I17: =TRUNC(((H17*24.2%)+H17),2) -> 0 | J17: =TRUNC(F17*I17,2) -> 0 | K17: =TRUNC(G17*I17,2) -> 0
A18: 2.3 | B18: 100322 | C18: SINAPI | D18: LASTRO COM MATERIAL GRANULAR (PEDRA BRITADA N.3), APLICADO EM PISOS OU LAJES SOBRE SOLO, ESPESSURA DE *10 CM*. AF_01/2024 | E18: M³ | F18: 5.02 | G18: =F18*45 -> 225.9 | I18: 0 | J18: =TRUNC(F18*I18,2) -> 0 | K18: =TRUNC(G18*I18,2) -> 0
A19: 2.4 | B19: 111632 | C19: SBC | D19: PORTAO FERRO ABRIR COM PINTURA EM DUAS FACES | E19: M² | F19: 3 | G19: =F19*45 -> 135 | I19: 0 | J19: =TRUNC(F19*I19,2) -> 0 | K19: =TRUNC(G19*I19,2) -> 0
A20: VALOR UNITÁRIO COM BDI | J20: =TRUNC(SUM(J14:J19),2) -> 0
A21: VALOR GLOBAL COM BDI | J21: =TRUNC(SUM(K14:K19),2) -> 0
A22: 3 | D22: SISTEMA DE GERAÇÃO FOTOVOLTAICA ON-GRID, COM ESTRUTURA PARA SOLO, COM POTÊNCIA MÍNIMA DE 9,0 KWP
A23: 3.1 | B23: - | C23: COTAÇÃO | D23: SISTEMA DE GERAÇÃO DE ENERGIA SOLAR, COM ESTRUTURA PARA SOLO, COM POTÊNCIA MÍNIMA DE 9,0 KWP, SENDO CAPAZ DE GERAR NO MÍNIMO 1000 KWH/MÊS POR UM PERÍODO MÍNIMO DE 12 MESES. INCLUINDO FORNECIMENTO, TRANSPORTE, INSTALAÇÃO E HOMOLOGAÇÃO, LOGOMARCA NO MODELO DA CODEVASF, E TODOS OS MATERIAIS E EQUIPAMENTOS NECESSÁRIOS À PERFEITA EXECUÇÃO DOS SERVIÇOS, DESTINADOS A ATENDER TODOS OS MUNICÍPIOS DA ÁREA DE ATUAÇÃO DA 11ª SUPERINTENDÊNCIA REGIONAL DA CODEVASF, NO ESTADO DO AMAPÁ | E23: UND. | F23: 1 | G23: 30 | H23: - | K23: =TRUNC(G23*I23,2) -> 0
A24: 4 | D24: SERVIÇOS COMPLEMENTARES AO SISTEMA DE GERAÇÃO DE 9,0 KWP
A25: 4.1 | B25: - | C25: CP-01 | D25: TRANSPORTE DE MÃO DE OBRA, MATERIAIS E EQUIPAMENTOS PARA EXECUÇÃO DOS SERVIÇOS COMPLEMENTARES | E25: KM | F25: 203.97 | G25: =F25*30 -> 6119.1 | I25: =TRUNC(((H25*24.2%)+H25),2) -> 0 | J25: =TRUNC(F25*I25,2) -> 0 | K25: =TRUNC(G25*I25,2) -> 0
A26: 4.2 | B26: - | C26: CP-02 | D26: CERCA COM MOURÕES DE CONCRETO, RETO, H=2,30 M, ESPAÇAMENTO DE 2,5 M, CRAVADOS 0,5 M, ESCORAS DE 10 X 10 CM NOS CANTOS, COM 8 FIOS DE ARAME FARPADO Nº 14 CLASSE 250 - FORNECIMENTO E INSTALAÇÃO | E26: M | F26: 38 | G26: =F26*30 -> 1140 | I26: =TRUNC(((H26*24.2%)+H26),2) -> 0 | J26: =TRUNC(F26*I26,2) -> 0 | K26: =TRUNC(G26*I26,2) -> 0
A27: 4.3 | B27: 100322 | C27: SINAPI | D27: LASTRO COM MATERIAL GRANULAR (PEDRA BRITADA N.3), APLICADO EM PISOS OU LAJES SOBRE SOLO, ESPESSURA DE *10 CM*. AF_01/2024 | E27: M³ | F27: 8.4 | G27: 252 | I27: 0 | J27: =TRUNC(F27*I27,2) -> 0 | K27: =TRUNC(G27*I27,2) -> 0
A28: 4.4 | B28: 111632 | C28: SBC | D28: PORTAO FERRO ABRIR COM PINTURA EM DUAS FACES | E28: M² | F28: 3 | G28: 90 | I28: 0 | J28: =TRUNC(F28*I28,2) -> 0 | K28: =TRUNC(G28*I28,2) -> 0
A29: VALOR UNITÁRIO COM BDI | J29: =TRUNC(SUM(J23:J28),2) -> 0
A30: VALOR GLOBAL COM BDI | J30: =TRUNC(SUM(K23:K28),2) -> 0
A31: 5 | D31: SISTEMA DE GERAÇÃO FOTOVOLTAICA ON-GRID, COM ESTRUTURA PARA SOLO, COM POTÊNCIA MÍNIMA DE 13,5 KWP
A32: 5.1 | B32: - | C32: COTAÇÃO | D32: SISTEMA DE GERAÇÃO DE ENERGIA SOLAR, COM ESTRUTURA PARA SOLO, COM POTÊNCIA MÍNIMA DE 13,5 KWP, SENDO CAPAZ DE GERAR NO MÍNIMO 1500 KWH/MÊS POR UM PERÍODO MÍNIMO DE 12 MESES. INCLUINDO FORNECIMENTO, TRANSPORTE, INSTALAÇÃO E HOMOLOGAÇÃO, LOGOMARCA NO MODELO DA CODEVASF, E TODOS OS MATERIAIS E EQUIPAMENTOS NECESSÁRIOS À PERFEITA EXECUÇÃO DOS SERVIÇOS, DESTINADOS A ATENDER TODOS OS MUNICÍPIOS DA ÁREA DE ATUAÇÃO DA 11ª SUPERINTENDÊNCIA REGIONAL DA CODEVASF, NO ESTADO DO AMAPÁ | E32: UND. | F32: 1 | G32: 15 | H32: - | K32: =TRUNC(G32*I32,2) -> 0
A33: 6 | D33: SERVIÇOS COMPLEMENTARES AO SISTEMA DE GERAÇÃO DE 13,5 KWP
A34: 6.1 | B34: - | C34: CP-01 | D34: TRANSPORTE DE MÃO DE OBRA, MATERIAIS E EQUIPAMENTOS PARA EXECUÇÃO DOS SERVIÇOS COMPLEMENTARES | E34: KM | F34: 203.97 | G34: =F34*15 -> 3059.55 | I34: =TRUNC(((H34*24.2%)+H34),2) -> 0 | J34: =TRUNC(F34*I34,2) -> 0 | K34: =TRUNC(G34*I34,2) -> 0
A35: 6.2 | B35: - | C35: CP-02 | D35: CERCA COM MOURÕES DE CONCRETO, RETO, H=2,30 M, ESPAÇAMENTO DE 2,5 M, CRAVADOS 0,5 M, ESCORAS DE 10 X 10 CM NOS CANTOS, COM 8 FIOS DE ARAME FARPADO Nº 14 CLASSE 250 - FORNECIMENTO E INSTALAÇÃO | E35: M | F35: 43.5 | G35: =F35*15 -> 652.5 | I35: =TRUNC(((H35*24.2%)+H35),2) -> 0 | J35: =TRUNC(F35*I35,2) -> 0 | K35: =TRUNC(G35*I35,2) -> 0
A36: 6.3 | B36: 100322 | C36: SINAPI | D36: LASTRO COM MATERIAL GRANULAR (PEDRA BRITADA N.3), APLICADO EM PISOS OU LAJES SOBRE SOLO, ESPESSURA DE *10 CM*. AF_01/2024 | E36: M³ | F36: 10.95 | G36: 164.25 | I36: 0 | J36: =TRUNC(F36*I36,2) -> 0 | K36: =TRUNC(G36*I36,2) -> 0
A37: 6.4 | B37: 111632 | C37: SBC | D37: PORTAO FERRO ABRIR COM PINTURA EM DUAS FACES | E37: M² | F37: 3 | G37: 45 | I37: 0 | J37: =TRUNC(F37*I37,2) -> 0 | K37: =TRUNC(G37*I37,2) -> 0
A38: VALOR UNITÁRIO COM BDI | J38: =TRUNC(SUM(J32:J37),2) -> 0
A39: VALOR GLOBAL COM BDI | J39: =TRUNC(SUM(K32:K37),2) -> 0
A40: 7 | D40: SISTEMA DE GERAÇÃO FOTOVOLTAICA ON-GRID, COM ESTRUTURA PARA SOLO, COM POTÊNCIA MÍNIMA DE 18,0 KWP
A41: 7.1 | B41: - | C41: COTAÇÃO | D41: SISTEMA DE GERAÇÃO DE ENERGIA SOLAR, COM ESTRUTURA PARA SOLO, COM POTÊNCIA MÍNIMA DE 18,0 KWP, SENDO CAPAZ DE GERAR NO MÍNIMO 2000 KWH/MÊS POR UM PERÍODO MÍNIMO DE 12 MESES. INCLUINDO FORNECIMENTO, TRANSPORTE, INSTALAÇÃO E HOMOLOGAÇÃO, LOGOMARCA NO MODELO DA CODEVASF, E TODOS OS MATERIAIS E EQUIPAMENTOS NECESSÁRIOS À PERFEITA EXECUÇÃO DOS SERVIÇOS, DESTINADOS A ATENDER TODOS OS MUNICÍPIOS DA ÁREA DE ATUAÇÃO DA 11ª SUPERINTENDÊNCIA REGIONAL DA CODEVASF, NO ESTADO DO AMAPÁ | E41: UND. | F41: 1 | G41: 10 | H41: - | K41: =TRUNC(G41*I41,2) -> 0
A42: 8 | D42: SERVIÇOS COMPLEMENTARES AO SISTEMA DE GERAÇÃO DE 18,0 KWP
A43: 8.1 | B43: - | C43: CP-01 | D43: TRANSPORTE DE MÃO DE OBRA, MATERIAIS E EQUIPAMENTOS PARA EXECUÇÃO DOS SERVIÇOS COMPLEMENTARES | E43: KM | F43: 203.97 | G43: =F43*10 -> 2039.7 | I43: =TRUNC(((H43*24.2%)+H43),2) -> 0 | J43: =TRUNC(F43*I43,2) -> 0 | K43: =TRUNC(G43*I43,2) -> 0
A44: 8.2 | B44: - | C44: CP-02 | D44: CERCA COM MOURÕES DE CONCRETO, RETO, H=2,30 M, ESPAÇAMENTO DE 2,5 M, CRAVADOS 0,5 M, ESCORAS DE 10 X 10 CM NOS CANTOS, COM 8 FIOS DE ARAME FARPADO Nº 14 CLASSE 250 - FORNECIMENTO E INSTALAÇÃO | E44: M | F44: 48.26 | G44: =F44*10 -> 482.6 | I44: =TRUNC(((H44*24.2%)+H44),2) -> 0 | J44: =TRUNC(F44*I44,2) -> 0 | K44: =TRUNC(G44*I44,2) -> 0
A45: 8.3 | B45: 100322 | C45: SINAPI | D45: LASTRO COM MATERIAL GRANULAR (PEDRA BRITADA N.3), APLICADO EM PISOS OU LAJES SOBRE SOLO, ESPESSURA DE *10 CM*. AF_01/2024 | E45: M³ | F45: 13.43 | G45: 134.3 | I45: 0 | J45: =TRUNC(F45*I45,2) -> 0 | K45: =TRUNC(G45*I45,2) -> 0
A46: 8.4 | B46: 111632 | C46: SBC | D46: PORTAO FERRO ABRIR COM PINTURA EM DUAS FACES | E46: M² | F46: 3 | G46: 30 | I46: 0 | J46: =TRUNC(F46*I46,2) -> 0 | K46: =TRUNC(G46*I46,2) -> 0
A47: VALOR UNITÁRIO COM BDI | J47: =TRUNC(SUM(J41:J46),2) -> 0
A48: VALOR GLOBAL COM BDI | J48: =TRUNC(SUM(K41:K46),2) -> 0
A49: VALOR GLOBAL TOTAL COM BDI | J49: =TRUNC((J21+J30+J39+J48),2) -> 0

Sheet CURVA ABC (hidden)
A1: ITEM | B1: CÓDIGO | C1: FONTE | D1: DESCRIÇÃO DOS SERVIÇOS | E1: UND. | F1: QUANT. | G1: PREÇO UNITÁRIO S/BDI | H1: PREÇO UNITÁRIO C/ BDI | I1: PREÇO TOTAL C/ BDI | J1: PORCENTAGEM INDIVIDUAL
A2: 7.6.1 | B2: 104314 | C2: SINAPI | D2: TRAMA DE AÇO COMPOSTA POR TERÇAS PARA TELHADOS DE ATÉ 2 ÁGUAS PARA TELHA ONDULADA DE FIBROCIMENTO, METÁLICA, PLÁSTICA OU TERMOACÚSTICA, INCLUSO TRANSPORTE VERTICAL (EM KG). AF_07/2019 | E2: KG | F2: 16805.58 | G2: 10.75 | H2: =(G2*26.24%)+G2 -> 13.5708 | I2: =ROUND(F2*H2,2) -> 228065.17 | J2: =I2/$I$248 -> 
A3: 7.5.6 | B3: 101747 | C3: SINAPI | D3: PISO EM CONCRETO 20 MPA PREPARO MECÂNICO, ESPESSURA 7CM. AF_09/2020 | E3: M2 | F3: 619 | G3: 118.47 | H3: 149.556528 | I3: 92575.49
A4: 10.6 | B4: 94213 | C4: SINAPI | D4: TELHAMENTO COM TELHA DE AÇO/ALUMÍNIO E = 0,5 MM, COM ATÉ 2 ÁGUAS, INCLUSO IÇAMENTO. AF_07/2019 | E4: M2 | F4: =0.72+562.5+187.5 -> 750.72 | G4: 65.01 | H4: 82.068624 | I4: 61610.56 | K4: 1526415.75
A5: 12.2 | B5: 87535 | C5: SINAPI | D5: EMBOÇO, EM ARGAMASSA TRAÇO 1:2:8, PREPARO MECÂNICO, APLICADO MANUALMENTE EM PAREDES INTERNAS DE AMBIENTES COM ÁREA MAIOR QUE 10M², E = 17,5MM, COM TALISCAS. AF_03/2024 | E5: M2 | F5: 1032.57 | G5: 35.39 | H5: 44.676336 | I5: 46131.44 | K5: =K4-#REF! -> 
A6: 13.3 | B6: 87632 | C6: SINAPI | D6: CONTRAPISO EM ARGAMASSA TRAÇO 1:4 (CIMENTO E AREIA), PREPARO MANUAL, APLICADO EM ÁREAS SECAS SOBRE LAJE, ADERIDO, ACABAMENTO NÃO REFORÇADO, ESPESSURA 3CM. AF_07/2021 | E6: M2 | F6: 619 | G6: 54.78 | H6: 69.154272 | I6: 42806.49
A7: 4.3 | B7: 90777 | C7: SINAPI | D7: ENGENHEIRO CIVIL DE OBRA JUNIOR COM ENCARGOS COMPLEMENTARES | E7: H | F7: 240 | G7: 136.41 | H7: 172.203984 | I7: 41328.96
A8: 10.5 | B8: 170099 | C8: SBC | D8: CANTONEIRA (ABAS IGUAIS) EM FERRO GALVANIZADO, 50,8mmx9,53mm | E8: M | F8: 298 | G8: 102.71 | H8: 129.661104 | I8: 38639.01
A9: 4.2 | B9: 93572 | C9: SINAPI | D9: ENCARREGADO GERAL DE OBRAS COM ENCARGOS COMPLEMENTARES | E9: MÊS | F9: =3*2 -> 6 | G9: 5045.37 | H9: 6369.275088 | I9: 38215.65
A10: 8.3.1 | B10: 102253 | C10: SINAPI | D10: DIVISORIA SANITÁRIA, TIPO CABINE, EM GRANITO CINZA POLIDO, ESP = 3CM, ASSENTADO COM ARGAMASSA COLANTE AC III-E, EXCLUSIVE FERRAGENS. AF_01/2021 | E10: M2 | F10: 25.43 | G10: 1160.01 | H10: 1464.396624 | I10: 37239.61
A11: 21.3 | B11: 96974 | C11: SINAPI | D11: CORDOALHA DE COBRE NU 50 MM², NÃO ENTERRADA, COM ISOLADOR - FORNECIMENTO E INSTALAÇÃO. AF_08/2023 | E11: M | F11: 255 | G11: 102.71 | H11: 129.661104 | I11: 33063.58
A12: 12.3 | B12: 87543 | C12: SINAPI | D12: MASSA ÚNICA, EM ARGAMASSA INDUSTRIALIZADA, PREPARO MECÂNICO, APLICADA COM EQUIPAMENTO DE MISTURA E PROJEÇÃO DE ARGAMASSA EM PAREDES INTERNAS, E = 5MM, SEM TALISCAS. AF_03/2024 | E12: M2 | F12: 897.78 | G12: 28.8 | H12: 36.35712 | I12: 32640.7
A13: 4.1 | B13: 93563 | C13: SINAPI | D13: ALMOXARIFE COM ENCARGOS COMPLEMENTARES | E13: MÊS | F13: =3*2 -> 6 | G13: 4284.85 | H13: 5409.19464 | I13: 32455.17
A14: 8.2.1 | B14: 103322 | C14: SINAPI | D14: ALVENARIA DE VEDAÇÃO DE BLOCOS CERÂMICOS FURADOS NA VERTICAL DE 9X19X39 CM (ESPESSURA 9 CM) E ARGAMASSA DE ASSENTAMENTO COM PREPARO EM BETONEIRA. AF_12/2021 | E14: M2 | F14: 395.31 | G14: 63.46 | H14: 80.111904 | I14: 31669.04
A15: 6.1.1 | B15: 100896 | C15: SINAPI | D15: ESTACA ESCAVADA MECANICAMENTE, SEM FLUIDO ESTABILIZANTE, COM 25CM DE DIÂMETRO, CONCRETO LANÇADO POR CAMINHÃO BETONEIRA (EXCLUSIVE MOBILIZAÇÃO E DESMOBILIZAÇÃO). AF_01/2020_PA | E15: M | F15: 270 | G15: 82.84 | H15: 104.577216 | I15: 28235.85
A16: 3.10 | B16: * | C16: SICRO3 | D16: MOBILIZAÇÃO E DESMOBILIZAÇÃO | E16: KM | F16: =(101+36.1+23.5/3)+1 -> 145.9333333 | G16: =CPUs!#REF! ->  | K16: =2*5*4*6 -> 240
A17: 8.1.1 | B17: 101161 | C17: SINAPI | D17: ALVENARIA DE VEDAÇÃO COM ELEMENTO VAZADO DE CONCRETO (COBOGÓ) DE 7X50X50CM E ARGAMASSA DE ASSENTAMENTO COM PREPARO EM BETONEIRA. AF_05/2020 | E17: M2 | F17: 84.2 | G17: 247.42 | H17: 312.343008 | I17: 26299.28
A18: 6.1.9 | B18: 96557 | C18: SINAPI | D18: CONCRETAGEM DE BLOCO DE COROAMENTO OU VIGA BALDRAME, FCK 30 MPA, COM USO DE BOMBA - LANÇAMENTO, ADENSAMENTO E ACABAMENTO. AF_01/2024 | E18: M3 | F18: 16.96 | G18: 1177.65 | H18: 1486.66536 | I18: 25213.84
A19: 20.4.5 | B19: 92988 | C19: SINAPI | D19: CABO DE COBRE FLEXÍVEL ISOLADO, 50 MM², ANTI-CHAMA 0,6/1,0 KV, PARA REDE ENTERRADA DE DISTRIBUIÇÃO DE ENERGIA ELÉTRICA - FORNECIMENTO E INSTALAÇÃO. AF_12/2021 | E19: M | F19: 231.5 | G19: 67.7 | H19: 85.46448 | I19: 19785.03
A20: 7.5.3 | B20: 96622 | C20: SINAPI | D20: LASTRO COM MATERIAL GRANULAR, APLICADO EM PISOS OU LAJES SOBRE SOLO, ESPESSURA DE *5 CM*. AF_01/2024 | E20: M3 | F20: 30.95 | G20: 483.3 | H20: 610.11792 | I20: 18883.15
A21: 7.4.1 | B21: 101964 | C21: SINAPI | D21: LAJE PRÉ-MOLDADA UNIDIRECIONAL, BIAPOIADA, PARA FORRO, ENCHIMENTO EM CERÂMICA, VIGOTA CONVENCIONAL, ALTURA TOTAL DA LAJE (ENCHIMENTO+CAPA) = (8+3). AF_11/2020_PA | E21: M2 | F21: 80.74 | G21: 181.81 | H21: 229.516944 | I21: 18531.2
A22: 14.7 | B22: 102491 | C22: SINAPI | D22: PINTURA DE PISO COM TINTA ACRÍLICA, APLICAÇÃO MANUAL, 2 DEMÃOS, INCLUSO FUNDO PREPARADOR. AF_05/2021 | E22: M2 | F22: 659.8 | G22: 21.04 | H22: 26.560896 | I22: 17524.88
A23: 7.1.6 | B23: 103672 | C23: SINAPI | D23: CONCRETAGEM DE PILARES, FCK = 25 MPA, COM USO DE BOMBA - LANÇAMENTO, ADENSAMENTO E ACABAMENTO. AF_02/2022_PS | E23: M3 | F23: 12.92 | G23: 1047.6 | H23: 1322.49024 | I23: 17086.57
A24: 14.5 | B24: 100739 | C24: SINAPI | D24: PINTURA COM TINTA ALQUÍDICA DE ACABAMENTO (ESMALTE SINTÉTICO ACETINADO) PULVERIZADA SOBRE PERFIL METÁLICO EXECUTADO EM FÁBRICA (POR DEMÃO). AF_01/2020_PE | E24: M2 | F24: =712.79+187.5+19.32+16.44+562.5 -> 1498.55 | G24: 8.65 | H24: 10.91976 | I24: 16363.81
A25: 7.5.5 | B25: 97088 | C25: SINAPI | D25: ARMAÇÃO PARA EXECUÇÃO DE RADIER, PISO DE CONCRETO OU LAJE SOBRE SOLO, COM USO DE TELA Q-92. AF_09/2021 | E25: KG | F25: 916.12 | G25: 13.72 | H25: 17.320128 | I25: 15867.32
A26: 14.4 | B26: 88489 | C26: SINAPI | D26: PINTURA LÁTEX ACRÍLICA PREMIUM, APLICAÇÃO MANUAL EM PAREDES, DUAS DEMÃOS. AF_04/2023 | E26: M2 | F26: =445.41+307.09+145.28 -> 897.78 | G26: 13.59 | H26: 17.156016 | I26: 15402.33
A27: 1.1 | B27: 90778 | C27: SINAPI | D27: ENGENHEIRO CIVIL DE OBRA PLENO COM ENCARGOS COMPLEMENTARES | E27: H | F27: =32*2.5 -> 80 | G27: 143.07 | H27: 180.611568 | I27: 14448.93
A28: 14.6 | B28: 100724 | C28: SINAPI | D28: PINTURA COM TINTA ALQUÍDICA DE FUNDO E ACABAMENTO (ESMALTE SINTÉTICO GRAFITE) APLICADA A ROLO OU PINCEL SOBRE PERFIL METÁLICO EXECUTADO EM FÁBRICA (POR DEMÃO). AF_01/2020 | E28: M2 | F28: 921.8 | G28: 11.99 | H28: 15.136176 | I28: 13952.53
A29: 12.5 | B29: 104615 | C29: SINAPI | D29: REVESTIMENTO CERÂMICO PARA PAREDES INTERNAS COM PLACAS TIPO PASTILHA DE DIMENSÕES 5 X 5 CM (PLACAS DE 30 X 30 CM) CM APLICADAS NA ALTURA INTEIRA DAS PAREDES. AF_02/2023 | E29: M2 | F29: =12.02+11.45+7.8 -> 31.27 | G29: 344.28 | H29: 434.619072 | I29: 13590.54
A30: 7.2.7 | B30: 103675 | C30: SINAPI | D30: CONCRETAGEM DE VIGAS E LAJES, FCK=25 MPA, PARA LAJES MACIÇAS OU NERVURADAS COM USO DE BOMBA - LANÇAMENTO, ADENSAMENTO E ACABAMENTO. AF_02/2022_PS | E30: M3 | F30: 10.14 | G30: 1048.7 | H30: 1323.87888 | I30: 13424.13
A31: 7.1.1 | B31: 92443 | C31: SINAPI | D31: MONTAGEM E DESMONTAGEM DE FÔRMA DE PILARES RETANGULARES E ESTRUTURAS SIMILARES, PÉ-DIREITO SIMPLES, EM CHAPA DE MADEIRA COMPENSADA PLASTIFICADA, 18 UTILIZAÇÕES. AF_09/2020 | E31: M2 | F31: 182.4 | G31: 55.14 | H31: 69.608736 | I31: 12696.63
A32: 7.2.1 | B32: 92443 | C32: SINAPI | D32: MONTAGEM E DESMONTAGEM DE FÔRMA DE PILARES RETANGULARES E ESTRUTURAS SIMILARES, PÉ-DIREITO SIMPLES, EM CHAPA DE MADEIRA COMPENSADA PLASTIFICADA, 18 UTILIZAÇÕES. AF_09/2020 | E32: M2 | F32: 169.88 | G32: 55.14 | H32: 69.608736 | I32: 11825.13
A33: 9.3.1 | B33: 91341 | C33: SINAPI | D33: PORTA EM ALUMÍNIO DE ABRIR TIPO VENEZIANA COM GUARNIÇÃO, FIXAÇÃO COM PARAFUSOS - FORNECIMENTO E INSTALAÇÃO. AF_12/2019 | E33: M2 | F33: =6.6+6.93+0.75 -> 14.28 | G33: 652.2 | H33: 823.33728 | I33: 11757.26
A34: 13.1 | B34: 87769 | C34: SINAPI | D34: CONTRAPISO EM ARGAMASSA PRONTA, PREPARO MANUAL, APLICADO EM ÁREAS MOLHADAS SOBRE IMPERMEABILIZAÇÃO, ACABAMENTO NÃO REFORÇADO, ESPESSURA 4CM. AF_07/2021 | E34: M2 | F34: 55.45 | G34: 164.69 | H34: 207.904656 | I34: 11528.31 | J34: =I34/$I$248 -> 
A35: 11.1 | B35: 98557 | C35: SINAPI | D35: IMPERMEABILIZAÇÃO DE SUPERFÍCIE COM EMULSÃO ASFÁLTICA, 2 DEMÃOS. AF_09/2023 | E35: M2 | F35: =75.2+65.31+28.28 -> 168.79 | G35: 53.66 | H35: 67.740384 | I35: 11433.9
A36: 12.6 | B36: 12816 | C36: ORSE | D36: Placa cimentícia e =10mm, para fechamento da fachada (1 lado/face), juntas aparentes, fixada em estrutura metalica, exclusive esta (fornecimento e assentamento) | E36: M2 | F36: 83.5 | G36: 106.8 | H36: 134.82432 | I36: 11257.83
A37: 3.5 | B37: 99059 | C37: SINAPI | D37: LOCAÇÃO CONVENCIONAL DE OBRA, UTILIZANDO GABARITO DE TÁBUAS CORRIDAS PONTALETADAS A CADA 2,00M - 2 UTILIZAÇÕES. AF_03/2024 | E37: M | F37: 146 | G37: 59.72 | H37: 75.390528 | I37: 11007.02
A38: 12.4 | B38: 87273 | C38: SINAPI | D38: REVESTIMENTO CERÂMICO PARA PAREDES INTERNAS COM PLACAS TIPO ESMALTADA EXTRA DE DIMENSÕES 33X45 CM APLICADAS NA ALTURA INTEIRA DAS PAREDES. AF_02/2023_PE | E38: M2 | F38: 103.52 | G38: 77.95 | H38: 98.40408 | I38: 10186.79
A39: 20.3.1 | B39: 91834 | C39: SINAPI | D39: ELETRODUTO FLEXÍVEL CORRUGADO, PVC, DN 25 MM (3/4"), PARA CIRCUITOS TERMINAIS, INSTALADO EM FORRO - FORNECIMENTO E INSTALAÇÃO. AF_03/2023_PA | E39: M | F39: 370.4 | G39: 20.91 | H39: 26.396784 | I39: 9777.37
A40: 2.3 | B40: 32.02.01 | C40: EMBASA | D40: SONDAGEM A PERCUSSÃO | E40: M | F40: 90 | G40: 85 | H40: 107.304 | I40: 9657.36
A41: 6.2.8 | B41: 96557 | C41: SINAPI | D41: CONCRETAGEM DE BLOCO DE COROAMENTO OU VIGA BALDRAME, FCK 30 MPA, COM USO DE BOMBA - LANÇAMENTO, ADENSAMENTO E ACABAMENTO. AF_01/2024 | E41: M3 | F41: 6.43 | G41: 1177.65 | H41: 1486.66536 | I41: 9559.26
A42: 16.2.1 | B42: 97907 | C42: SINAPI | D42: CAIXA ENTERRADA HIDRÁULICA RETANGULAR, EM ALVENARIA COM BLOCOS DE CONCRETO, DIMENSÕES INTERNAS: 0,8X0,8X0,6 M PARA REDE DE ESGOTO. AF_12/2020 | E42: UN | F42: 10 | G42: 718.55 | H42: 907.09752 | I42: 9070.98
A43: 3.8 | B43: 10778 | C43: SINAPI | D43: LOCACAO DE CONTAINER 2,30 X 6,00 M, ALT. 2,50 M, PARA SANITARIO, COM 4 BACIAS, 8 CHUVEIROS,1 LAVATORIO E 1 MICTORIO (NAO INCLUI MOBILIZACAO/DESMOBILIZACAO) | E43: MÊS | F43: 6 | G43: 1129.37 | H43: 1425.716688 | I43: 8554.3
A44: 6.1.3 | B44: 96534 | C44: SINAPI | D44: FABRICAÇÃO, MONTAGEM E DESMONTAGEM DE FÔRMA PARA BLOCO DE COROAMENTO, EM MADEIRA SERRADA, E=25 MM, 4 UTILIZAÇÕES. AF_01/2024 | E44: M2 | F44: 78.26 | G44: 79.27 | H44: 100.070448 | I44: 7831.51
A45: 3.6 | B45: 10775 | C45: SINAPI | D45: LOCACAO DE CONTAINER 2,30 X 6,00 M, ALT. 2,50 M, COM 1 SANITARIO, PARA ESCRITORIO, COMPLETO, SEM DIVISORIAS INTERNAS (NAO INCLUI MOBILIZACAO/DESMOBILIZACAO) | E45: MÊS | F45: 6 | G45: 903.5 | H45: 1140.5784 | I45: 6843.47
A46: 20.4.1 | B46: 91926 | C46: SINAPI | D46: CABO DE COBRE FLEXÍVEL ISOLADO, 2,5 MM², ANTI-CHAMA 450/750 V, PARA CIRCUITOS TERMINAIS - FORNECIMENTO E INSTALAÇÃO. AF_03/2023 | E46: M | F46: 1072.5 | G46: 5.03 | H46: 6.349872 | I46: 6810.24
A47: 7.1.3 | B47: 92762 | C47: SINAPI | D47: ARMAÇÃO DE PILAR OU VIGA DE ESTRUTURA CONVENCIONAL DE CONCRETO ARMADO UTILIZANDO AÇO CA-50 DE 10,0 MM - MONTAGEM. AF_06/2022 | E47: KG | F47: 406.18 | G47: 13.21 | H47: 16.676304 | I47: 6773.58
A48: 6.2.2 | B48: 96616 | C48: SINAPI | D48: LASTRO DE CONCRETO MAGRO, APLICADO EM BLOCOS DE COROAMENTO OU SAPATAS. AF_01/2024 | E48: M3 | F48: 4.93 | G48: 1081.44 | H48: 1365.209856 | I48: 6730.48
A49: 7.1.4 | B49: 92763 | C49: SINAPI | D49: ARMAÇÃO DE PILAR OU VIGA DE ESTRUTURA CONVENCIONAL DE CONCRETO ARMADO UTILIZANDO AÇO CA-50 DE 12,5 MM - MONTAGEM. AF_06/2022 | E49: KG | F49: 472.41 | G49: 11.18 | H49: 14.113632 | I49: 6667.42
A50: 10.1 | B50: 94449 | C50: SINAPI | D50: TELHAMENTO COM TELHA ONDULADA DE FIBRA DE VIDRO E = 0,6 MM, PARA TELHADO COM INCLINAÇÃO MAIOR QUE 10°, COM ATÉ 2 ÁGUAS, INCLUSO IÇAMENTO. AF_07/2019 | E50: M2 | F50: 78.42 | G50: 66.38 | H50: 83.798112 | I50: 6571.45
A51: 6.2.3 | B51: 96536 | C51: SINAPI | D51: FABRICAÇÃO, MONTAGEM E DESMONTAGEM DE FÔRMA PARA VIGA BALDRAME, EM MADEIRA SERRADA, E=25 MM, 4 UTILIZAÇÕES. AF_01/2024 | E51: M2 | F51: 75.2 | G51: 69.05 | H51: 87.16872 | I51: 6555.09
A52: 12.1 | B52: 87879 | C52: SINAPI | D52: CHAPISCO APLICADO EM ALVENARIAS E ESTRUTURAS DE CONCRETO INTERNAS, COM COLHER DE PEDREIRO. ARGAMASSA TRAÇO 1:3 COM PREPARO EM BETONEIRA 400L. AF_10/2022 | E52: M2 | F52: 1032.57 | G52: 5 | H52: 6.312 | I52: 6517.58
A53: 3.2 | B53: 98459 | C53: SINAPI | D53: TAPUME COM TELHA METÁLICA. AF_03/2024 | E53: M2 | F53: 57.2 | G53: 86.61 | H53: 109.336464 | I53: 6254.05
A54: 10.3 | B54: 94229 | C54: SINAPI | D54: CALHA EM CHAPA DE AÇO GALVANIZADO NÚMERO 24, DESENVOLVIMENTO DE 100 CM, INCLUSO TRANSPORTE VERTICAL. AF_07/2019 | E54: M | F54: 30.92 | G54: 157.04 | H54: 198.247296 | I54: 6129.81
A55: 9.4.1 | B55: 94569 | C55: SINAPI | D55: JANELA DE ALUMÍNIO TIPO MAXIM-AR, BATENTE/ REQUADRO 3 A 14 CM, VIDRO INCLUSO, FIXAÇÃO COM PARAFUSO, SEM GUARNIÇÃO/ ALIZAR, DIMENSÕES 60X80 (A X L) CM, SEM ACABAMENTO, VEDAÇÃO COM SILICONE, EXCLUSIVE CONTRAMARCO - FORNECIMENTO E INSTALAÇÃO. AF_11/2024 | E55: M2 | F55: 6.48 | G55: 662.11 | H55: 835.847664 | I55: 5416.29
A56: 3.7 | B56: 10776 | C56: SINAPI | D56: LOCACAO DE CONTAINER 2,30 X 6,00 M, ALT. 2,50 M, PARA ESCRITORIO, SEM DIVISORIAS INTERNAS E SEM SANITARIO (NAO INCLUI MOBILIZACAO/DESMOBILIZACAO) | E56: MÊS | F56: 6 | G56: 705.85 | H56: 891.06504 | I56: 5346.39
A57: 2.1 | B57: 2708 | C57: SINAPI | D57: ENGENHEIRO CIVIL DE OBRA SENIOR (HORISTA) | E57: H | F57: =5*5 -> 25 | G57: 165.73 | H57: 209.217552 | I57: 5230.44
A58: 18.11 | B58: 100867 | C58: SINAPI | D58: BARRA DE APOIO RETA, EM ACO INOX POLIDO, COMPRIMENTO 70 CM, FIXADA NA PAREDE - FORNECIMENTO E INSTALAÇÃO. AF_01/2020 | E58: UN | F58: 10 | G58: 407.93 | H58: 514.970832 | I58: 5149.71
A59: 13.4 | B59: 87251 | C59: SINAPI | D59: REVESTIMENTO CERÂMICO PARA PISO COM PLACAS TIPO ESMALTADA DE DIMENSÕES 45X45 CM APLICADA EM AMBIENTES DE ÁREA MAIOR QUE 10 M2. AF_02/2023_PE | E59: M2 | F59: 61.95 | G59: 64.59 | H59: 81.538416 | I59: 5051.3
A60: 15.39 | B60: 102610 | C60: SINAPI | D60: CAIXA D´ÁGUA EM POLIETILENO, 3000 LITROS - FORNECIMENTO E INSTALAÇÃO. AF_06/2021 | E60: UN | F60: 2 | G60: 1982.22 | H60: 2502.354528 | I60: 5004.71
A61: 6.1.5 | B61: 96545 | C61: SINAPI | D61: ARMAÇÃO DE BLOCO UTILIZANDO AÇO CA-50 DE 8 MM - MONTAGEM. AF_01/2024 | E61: KG | F61: 216.63 | G61: 18.3 | H61: 23.10192 | I61: 5004.57
A62: 3.4 | B62: 12075 | C62: SBC | D62: INSTALACAO PROVISORIA DE AGUA E ESGOTO | E62: PT | F62: 1 | G62: 3612.94 | H62: 4560.975456 | I62: 4560.98
A63: 5.2 | B63: 96525 | C63: SINAPI | D63: ESCAVAÇÃO MECANIZADA PARA VIGA BALDRAME OU SAPATA CORRIDA COM MINI-ESCAVADEIRA (INCLUINDO ESCAVAÇÃO PARA COLOCAÇÃO DE FÔRMAS). AF_01/2024 | E63: M3 | F63: 66.28 | G63: 53.74 | H63: 67.841376 | I63: 4496.53
A64: 7.1.5 | B64: 92759 | C64: SINAPI | D64: ARMAÇÃO DE PILAR OU VIGA DE ESTRUTURA CONVENCIONAL DE CONCRETO ARMADO UTILIZANDO AÇO CA-60 DE 5,0 MM - MONTAGEM. AF_06/2022 | E64: KG | F64: 211.61 | G64: 16.01 | H64: 20.211024 | I64: 4276.85
A65: 20.3.3 | B65: 93011 | C65: SINAPI | D65: ELETRODUTO RÍGIDO ROSCÁVEL, PVC, DN 85 MM (3"), PARA REDE ENTERRADA DE DISTRIBUIÇÃO DE ENERGIA ELÉTRICA - FORNECIMENTO E INSTALAÇÃO. AF_12/2021 | E65: M | F65: 60 | G65: 55.54 | H65: 70.113696 | I65: 4206.82
A66: 22.1 | B66: 11795 | C66: SINAPI | D66: GRANITO PARA BANCADA, POLIDO, TIPO ANDORINHA/ QUARTZ/ CASTELO/ CORUMBA OU OUTROS EQUIVALENTES DA REGIAO, E= *2,5* CM | E66: M2 | F66: 3.79 | G66: 875.47 | H66: =(G66*26.24%)+G66 -> 1105.193328 | I66: =ROUND(F66*H66,2) -> 4188.68 | J66: =I66/$I$248 -> 
A67: 20.4.3 | B67: 91930 | C67: SINAPI | D67: CABO DE COBRE FLEXÍVEL ISOLADO, 6 MM², ANTI-CHAMA 450/750 V, PARA CIRCUITOS TERMINAIS - FORNECIMENTO E INSTALAÇÃO. AF_03/2023 | E67: M | F67: 286.75 | G67: 10.94 | H67: 13.810656 | I67: 3960.21
A68: 7.2.4 | B68: 92762 | C68: SINAPI | D68: ARMAÇÃO DE PILAR OU VIGA DE ESTRUTURA CONVENCIONAL DE CONCRETO ARMADO UTILIZANDO AÇO CA-50 DE 10,0 MM - MONTAGEM. AF_06/2022 | E68: KG | F68: 233.64 | G68: 13.21 | H68: 16.676304 | I68: 3896.25
A69: 6.1.6 | B69: 96546 | C69: SINAPI | D69: ARMAÇÃO DE BLOCO UTILIZANDO AÇO CA-50 DE 10 MM - MONTAGEM. AF_01/2024 | E69: KG | F69: 190.34 | G69: 16.14 | H69: 20.375136 | I69: 3878.2
A70: 3.1 | B70: 103689 | C70: SINAPI | D70: FORNECIMENTO E INSTALAÇÃO DE PLACA DE OBRA COM CHAPA GALVANIZADA E ESTRUTURA DE MADEIRA. AF_03/2022_PS | E70: M2 | F70: 6.48 | G70: 461.96 | H70: 583.178304 | I70: 3779
A71: 22.3 | B71: CPU 01 | C71: SINAPI | D71: BANCO EM ALVENARIA REVESTIDO EM CERÂMICA | E71: M | F71: 4 | G71: =CPUs!I20 -> 6.47 | H71: 8.167728 | I71: 32.67
A72: 22.6 | B72: 12628 | C72: ORSE | D72: Mastro triplo em tubo ferro galvanizado, alt (útil)= 6m (3,80m x 2" + 2,20m x1 1/2"), inclusive base de concreto ciclópico - Rev 01 | E72: UN | F72: 1 | G72: 2958 | H72: 3734.1792 | I72: 3734.18
A73: 18.13 | B73: 100875 | C73: SINAPI | D73: BANCO ARTICULADO, EM ACO INOX, PARA PCD, FIXADO NA PAREDE - FORNECIMENTO E INSTALAÇÃO. AF_01/2020 | E73: UN | F73: 2 | G73: 1379.72 | H73: 1741.758528 | I73: 3483.52
A74: 18.18 | B74: 102147 | C74: SINAPI | D74: ESPELHO CRISTAL, ESPESSURA 4 MM, SEM MOLDURA, ADERIDO COM ADESIVO FIXA-ESPELHO. AF_01/2021 | E74: M2 | F74: 3.05 | G74: 868.57 | H74: 1096.482768 | I74: 3344.27
A75: 7.2.3 | B75: 92761 | C75: SINAPI | D75: ARMAÇÃO DE PILAR OU VIGA DE ESTRUTURA CONVENCIONAL DE CONCRETO ARMADO UTILIZANDO AÇO CA-50 DE 8,0 MM - MONTAGEM. AF_06/2022 | E75: KG | F75: 163.81 | G75: 14.68 | H75: 18.532032 | I75: 3035.73
A76: 7.1.2 | B76: 92760 | C76: SINAPI | D76: ARMAÇÃO DE PILAR OU VIGA DE ESTRUTURA CONVENCIONAL DE CONCRETO ARMADO UTILIZANDO AÇO CA-50 DE 6,3 MM - MONTAGEM. AF_06/2022 | E76: KG | F76: 155.59 | G76: 15.43 | H76: 19.478832 | I76: 3030.71
A77: 9.1.1 | B77: 90823 | C77: SINAPI | D77: PORTA DE MADEIRA PARA PINTURA, SEMI-OCA (LEVE OU MÉDIA), 90X210CM, ESPESSURA DE 3,5CM, INCLUSO DOBRADIÇAS - FORNECIMENTO E INSTALAÇÃO. AF_12/2019 | E77: UN | F77: 5 | G77: 450.61 | H77: 568.850064 | I77: 2844.25
A78: 17.26 | B78: 101807 | C78: SINAPI | D78: CAIXA ENTERRADA DISTRIBUIDORA DE VAZÃO (SUMIDOUROS MÚLTIPLOS), RETANGULAR, EM ALVENARIA COM BLOCOS DE CONCRETO, DIMENSÕES INTERNAS: 0,60 X 0,60 X H=0,50 M. AF_12/2020 | E78: UN | F78: 4 | G78: 558.46 | H78: 704.999904 | I78: 2820
A79: 6.2.6 | B79: 104919 | C79: SINAPI | D79: ARMAÇÃO DE SAPATA ISOLADA, VIGA BALDRAME E SAPATA CORRIDA UTILIZANDO AÇO CA-50 DE 10 MM - MONTAGEM. AF_01/2024 | E79: KG | F79: 144.45 | G79: 14.87 | H79: 18.771888 | I79: 2711.6
A80: 7.2.6 | B80: 92759 | C80: SINAPI | D80: ARMAÇÃO DE PILAR OU VIGA DE ESTRUTURA CONVENCIONAL DE CONCRETO ARMADO UTILIZANDO AÇO CA-60 DE 5,0 MM - MONTAGEM. AF_06/2022 | E80: KG | F80: 132.78 | G80: 16.01 | H80: 20.211024 | I80: 2683.62
A81: 3.3 | B81: 101509 | C81: SINAPI | D81: ENTRADA DE ENERGIA ELÉTRICA, AÉREA, TRIFÁSICA, COM CAIXA DE EMBUTIR, CABO DE 10 MM2 E DISJUNTOR DIN 50A (NÃO INCLUSO O POSTE DE CONCRETO). AF_07/2020 | E81: UN | F81: 1 | G81: 2119.87 | H81: 2676.123888 | I81: 2676.12
A82: 20.4.4 | B82: 92984 | C82: SINAPI | D82: CABO DE COBRE FLEXÍVEL ISOLADO, 25 MM², ANTI-CHAMA 0,6/1,0 KV, PARA REDE ENTERRADA DE DISTRIBUIÇÃO DE ENERGIA ELÉTRICA - FORNECIMENTO E INSTALAÇÃO. AF_12/2021 | E82: M | F82: 60.5 | G82: 33.51 | H82: 42.303024 | I82: 2559.33
A83: 7.5.1 | B83: 97083 | C83: SINAPI | D83: COMPACTAÇÃO MECÂNICA DE SOLO PARA EXECUÇÃO DE RADIER, PISO DE CONCRETO OU LAJE SOBRE SOLO, COM COMPACTADOR DE SOLOS A PERCUSSÃO. AF_09/2021 | E83: M2 | F83: 619 | G83: 3.24 | H83: 4.090176 | I83: 2531.82
A84: 23.1 | B84: 99803 | C84: SINAPI | D84: LIMPEZA DE PISO CERÂMICO OU PORCELANATO COM PANO ÚMIDO. AF_04/2019 | E84: M2 | F84: 918.22 | G84: 2 | H84: 2.5248 | I84: 2318.32
A85: 14.1 | B85: 88496 | C85: SINAPI | D85: EMASSAMENTO COM MASSA LÁTEX, APLICAÇÃO EM TETO, DUAS DEMÃOS, LIXAMENTO MANUAL. AF_04/2023 | E85: M2 | F85: 60.16 | G85: 30.07 | H85: 37.960368 | I85: 2283.7
A86: 20.5.7 | B86: 97607 | C86: SINAPI | D86: LUMINÁRIA ARANDELA TIPO TARTARUGA, DE SOBREPOR, COM 1 LÂMPADA LED DE 6 W, SEM REATOR - FORNECIMENTO E INSTALAÇÃO. AF_09/2024 | E86: UN | F86: =14+3 -> 17 | G86: 105.72 | H86: 133.460928 | I86: 2268.84
A87: 22.2 | B87: 101965 | C87: SINAPI | D87: PEITORIL LINEAR EM GRANITO OU MÁRMORE, L = 15CM, COMPRIMENTO DE ATÉ 2M, ASSENTADO COM ARGAMASSA 1:6 COM ADITIVO. AF_11/2020 | E87: M | F87: 10.8 | G87: 164.86 | H87: 208.119264 | I87: 2247.69
A88: 18.12 | B88: 100868 | C88: SINAPI | D88: BARRA DE APOIO RETA, EM ACO INOX POLIDO, COMPRIMENTO 80 CM, FIXADA NA PAREDE - FORNECIMENTO E INSTALAÇÃO. AF_01/2020 | E88: UN | F88: 4 | G88: 424.79 | H88: 536.254896 | I88: 2145.02
A89: 7.4.2 | B89: 92453 | C89: SINAPI | D89: MONTAGEM E DESMONTAGEM DE FÔRMA DE VIGA, ESCORAMENTO COM GARFO DE MADEIRA, PÉ-DIREITO DUPLO, EM CHAPA DE MADEIRA RESINADA, 4 UTILIZAÇÕES. AF_09/2020 | E89: M2 | F89: 6.32 | G89: 261.59 | H89: 330.231216 | I89: 2087.06
A90: 18.7 | B90: 36791 | C90: SINAPI | D90: TORNEIRA METALICA CROMADA DE MESA PARA LAVATORIO, BICA ALTA, COM AREJADOR | E90: UN | F90: 6 | G90: 273.08 | H90: 344.736192 | I90: 2068.42
A91: 21.2 | B91: 96985 | C91: SINAPI | D91: HASTE DE ATERRAMENTO, DIÂMETRO 5/8", COM 3 METROS - FORNECIMENTO E INSTALAÇÃO. AF_08/2023 | E91: UN | F91: 18 | G91: 90.64 | H91: 114.423936 | I91: 2059.63
A92: 15.37 | B92: 89987 | C92: SINAPI | D92: REGISTRO DE GAVETA BRUTO, LATÃO, ROSCÁVEL, 3/4", COM ACABAMENTO E CANOPLA CROMADOS - FORNECIMENTO E INSTALAÇÃO. AF_08/2021 | E92: UN | F92: 15 | G92: 108.48 | H92: 136.945152 | I92: 2054.18
A93: 20.3.5 | B93: 91886 | C93: SINAPI | D93: LUVA PARA ELETRODUTO, PVC, ROSCÁVEL, DN 40 MM (1 1/4"), PARA CIRCUITOS TERMINAIS, INSTALADA EM PAREDE - FORNECIMENTO E INSTALAÇÃO. AF_03/2023 | E93: UN | F93: 103 | G93: 15.62 | H93: 19.718688 | I93: 2031.02
A94: 6.2.7 | B94: 96543 | C94: SINAPI | D94: ARMAÇÃO DE BLOCO UTILIZANDO AÇO CA-60 DE 5 MM - MONTAGEM. AF_01/2024 | E94: KG | F94: 71.44 | G94: 21.76 | H94: 27.469824 | I94: 1962.44
A95: 18.10 | B95: 100866 | C95: SINAPI | D95: BARRA DE APOIO RETA, EM ACO INOX POLIDO, COMPRIMENTO 60CM, FIXADA NA PAREDE - FORNECIMENTO E INSTALAÇÃO. AF_01/2020 | E95: UN | F95: 4 | G95: 382.58 | H95: 482.968992 | I95: 1931.88
A96: 6.1.2 | B96: 96619 | C96: SINAPI | D96: LASTRO DE CONCRETO MAGRO, APLICADO EM BLOCOS DE COROAMENTO OU SAPATAS, ESPESSURA DE 5 CM. AF_01/2024 | E96: M2 | F96: 27.36 | G96: 54.05 | H96: 68.23272 | I96: 1866.85
A97: 7.5.4 | B97: 97087 | C97: SINAPI | D97: CAMADA SEPARADORA PARA EXECUÇÃO DE RADIER, PISO DE CONCRETO OU LAJE SOBRE SOLO, EM LONA PLÁSTICA. AF_09/2021 | E97: M2 | F97: 619 | G97: 2.38 | H97: 3.004512 | I97: 1859.79
A98: 18.21 | B98: 100858 | C98: SINAPI | D98: MICTÓRIO SIFONADO LOUÇA BRANCA - PADRÃO MÉDIO - FORNECIMENTO E INSTALAÇÃO. AF_01/2020 | E98: UN | F98: 2 | G98: 720.64 | H98: 909.735936 | I98: 1819.47
A99: 18.1 | B99: 95470 | C99: SINAPI | D99: VASO SANITARIO SIFONADO CONVENCIONAL COM LOUÇA BRANCA, INCLUSO CONJUNTO DE LIGAÇÃO PARA BACIA SANITÁRIA AJUSTÁVEL - FORNECIMENTO E INSTALAÇÃO. AF_01/2020 | E99: UN | F99: 5 | G99: 287.67 | H99: 363.154608 | I99: 1815.77
A100: 6.2.5 | B100: 104918 | C100: SINAPI | D100: ARMAÇÃO DE SAPATA ISOLADA, VIGA BALDRAME E SAPATA CORRIDA UTILIZANDO AÇO CA-50 DE 8 MM - MONTAGEM. AF_01/2024 | E100: KG | F100: 83.04 | G100: 16.55 | H100: 20.89272 | I100: 1734.93
A101: 15.36 | B101: 94794 | C101: SINAPI | D101: REGISTRO DE GAVETA BRUTO, LATÃO, ROSCÁVEL, 1 1/2", COM ACABAMENTO E CANOPLA CROMADOS - FORNECIMENTO E INSTALAÇÃO. AF_08/2021 | E101: UN | F101: 7 | G101: 192.17 | H101: 242.595408 | I101: 1698.17
A102: 16.1.1 | B102: 89578 | C102: SINAPI | D102: TUBO PVC, SÉRIE R, ÁGUA PLUVIAL, DN 100 MM, FORNECIDO E INSTALADO EM CONDUTORES VERTICAIS DE ÁGUAS PLUVIAIS. AF_06/2022 | E102: M | F102: 54 | G102: 24.91 | H102: 31.446384 | I102: 1698.1
A103: 22.4 | B103: CPU 02 | C103: SINAPI | D103: BANCO DE CONCRETO SEM ENCOSTO, DIM. 2,00 X 0,40 M | E103: M2 | F103: 2 | G103: =CPUs!I31 -> 89.1432 | H103: 112.5343757 | I103: 225.07
A104: 7.4.4 | B104: 103675 | C104: SINAPI | D104: CONCRETAGEM DE VIGAS E LAJES, FCK=25 MPA, PARA LAJES MACIÇAS OU NERVURADAS COM USO DE BOMBA - LANÇAMENTO, ADENSAMENTO E ACABAMENTO. AF_02/2022_PS | E104: M3 | F104: 1.23 | G104: 1048.7 | H104: 1323.87888 | I104: 1628.37
A105: 18.8 | B105: 44045 | C105: SINAPI | D105: TORNEIRA DE MESA PARA LAVATORIO, METALICA CROMADA, COM MISTURADOR MONOCOMANDO, BICA BAIXA | E105: UN | F105: 2 | G105: 640.7 | H105: 808.81968 | I105: 1617.64
A106: 13.2 | B106: 87704 | C106: SINAPI | D106: CONTRAPISO EM ARGAMASSA PRONTA, PREPARO MANUAL, APLICADO EM ÁREAS SECAS SOBRE LAJE, NÃO ADERIDO, ACABAMENTO NÃO REFORÇADO, ESPESSURA 6CM. AF_07/2021 | E106: M2 | F106: 6.5 | G106: 187 | H106: 236.0688 | I106: 1534.45
A107: 7.4.3 | B107: 92769 | C107: SINAPI | D107: ARMAÇÃO DE LAJE DE ESTRUTURA CONVENCIONAL DE CONCRETO ARMADO UTILIZANDO AÇO CA-50 DE 6,3 MM - MONTAGEM. AF_06/2022 | E107: KG | F107: 79.56 | G107: 14.92 | H107: 18.835008 | I107: 1498.51
A108: 16.1.5 | B108: 89584 | C108: SINAPI | D108: JOELHO 90 GRAUS, PVC, SERIE R, ÁGUA PLUVIAL, DN 100 MM, JUNTA ELÁSTICA, FORNECIDO E INSTALADO EM CONDUTORES VERTICAIS DE ÁGUAS PLUVIAIS. AF_06/2022 | E108: UN | F108: 30 | G108: 39.28 | H108: 49.587072 | I108: 1487.61
A109: 9.2.2 | B109: 36204 | C109: SINAPI | D109: BARRA DE APOIO RETA, EM ACO INOX POLIDO, COMPRIMENTO 60CM, DIAMETRO MINIMO 3 CM | E109: UN | F109: 5 | G109: 229.16 | H109: 289.291584 | I109: 1446.46
A110: 6.2.1 | B110: 96619 | C110: SINAPI | D110: LASTRO DE CONCRETO MAGRO, APLICADO EM BLOCOS DE COROAMENTO OU SAPATAS, ESPESSURA DE 5 CM. AF_01/2024 | E110: M2 | F110: 18.36 | G110: 54.05 | H110: 68.23272 | I110: 1252.75
A111: 9.1.2 | B111: 90830 | C111: SINAPI | D111: FECHADURA DE EMBUTIR COM CILINDRO, EXTERNA, COMPLETA, ACABAMENTO PADRÃO MÉDIO, INCLUSO EXECUÇÃO DE FURO - FORNECIMENTO E INSTALAÇÃO. AF_12/2019 | E111: UN | F111: 5 | G111: 194.34 | H111: 245.334816 | I111: 1226.67
A112: 6.1.7 | B112: 104920 | C112: SINAPI | D112: ARMAÇÃO DE BLOCO, SAPATA ISOLADA, VIGA BALDRAME E SAPATA CORRIDA UTILIZANDO AÇO CA-50 DE 12,5 MM - MONTAGEM. AF_01/2024 | E112: KG | F112: 75.88 | G112: 12.68 | H112: 16.007232 | I112: 1214.63
A113: 14.3 | B113: 88488 | C113: SINAPI | D113: PINTURA LÁTEX ACRÍLICA PREMIUM, APLICAÇÃO MANUAL EM TETO, DUAS DEMÃOS. AF_04/2023 | E113: M2 | F113: 60.16 | G113: 15.88 | H113: 20.046912 | I113: 1206.02
A114: 5.1 | B114: 94318 | C114: SINAPI | D114: ATERRO MECANIZADO DE VALA COM RETROESCAVADEIRA (CAPACIDADE DA CAÇAMBA DA RETRO: 0,26 M³ / POTÊNCIA: 88 HP), LARGURA ATÉ 1,5 M, PROFUNDIDADE DE 1,5 A 3,0 M, COM SOLO ARGILO-ARENOSO. AF_08/2023 | E114: M3 | F114: 14.08 | G114: 67.09 | H114: 84.694416 | I114: 1192.5
A115: 6.1.8 | B115: 96543 | C115: SINAPI | D115: ARMAÇÃO DE BLOCO UTILIZANDO AÇO CA-60 DE 5 MM - MONTAGEM. AF_01/2024 | E115: KG | F115: 41.59 | G115: 21.76 | H115: 27.469824 | I115: 1142.47
A116: 16.1.4 | B116: 89585 | C116: SINAPI | D116: JOELHO 45 GRAUS, PVC, SERIE R, ÁGUA PLUVIAL, DN 100 MM, JUNTA ELÁSTICA, FORNECIDO E INSTALADO EM CONDUTORES VERTICAIS DE ÁGUAS PLUVIAIS. AF_06/2022 | E116: UN | F116: 22 | G116: 40.03 | H116: 50.533872 | I116: 1111.75
A117: 9.2.1 | B117: 100705 | C117: SINAPI | D117: TARJETA TIPO LIVRE/OCUPADO PARA PORTA DE BANHEIRO. AF_12/2019 | E117: UN | F117: 11 | G117: 78.59 | H117: 99.212016 | I117: 1091.33
A118: 10.4 | B118: 100326 | C118: SINAPI | D118: CUMEEIRA NORMAL PARA TELHA TRAPEZOIDAL DE AÇO, E = 0,5 MM, INCLUSO ACESSÓRIOS DE FIXAÇÃO E IÇAMENTO. AF_07/2019 | E118: M | F118: 38.65 | G118: 22.04 | H118: 27.823296 | I118: 1075.37
A119: 17.1 | B119: 89714 | C119: SINAPI | D119: TUBO PVC, SERIE NORMAL, ESGOTO PREDIAL, DN 100 MM, FORNECIDO E INSTALADO EM RAMAL DE DESCARGA OU RAMAL DE ESGOTO SANITÁRIO. AF_08/2022 | E119: M | F119: 25.09 | G119: 33.21 | H119: 41.924304 | I119: 1051.88
A120: 18.9 | B120: 100860 | C120: SINAPI | D120: CHUVEIRO ELÉTRICO COMUM CORPO PLÁSTICO, TIPO DUCHA - FORNECIMENTO E INSTALAÇÃO. AF_01/2020 | E120: UN | F120: 8 | G120: 103.88 | H120: 131.138112 | I120: 1049.1
A121: 7.2.5 | B121: 92763 | C121: SINAPI | D121: ARMAÇÃO DE PILAR OU VIGA DE ESTRUTURA CONVENCIONAL DE CONCRETO ARMADO UTILIZANDO AÇO CA-50 DE 12,5 MM - MONTAGEM. AF_06/2022 | E121: KG | F121: 73.96 | G121: 11.18 | H121: 14.113632 | I121: 1043.84
A122: 15.38 | B122: 89985 | C122: SINAPI | D122: REGISTRO DE PRESSÃO BRUTO, LATÃO, ROSCÁVEL, 3/4", COM ACABAMENTO E CANOPLA CROMADOS - FORNECIMENTO E INSTALAÇÃO. AF_08/2021 | E122: UN | F122: 8 | G122: 102.94 | H122: 129.951456 | I122: 1039.61
A123: 18.3 | B123: 86901 | C123: SINAPI | D123: CUBA DE EMBUTIR OVAL EM LOUÇA BRANCA, 35 X 50CM OU EQUIVALENTE - FORNECIMENTO E INSTALAÇÃO. AF_01/2020 | E123: UN | F123: 6 | G123: 134.53 | H123: 169.830672 | I123: 1018.98
A124: 8.2.2 | B124: 93200 | C124: SINAPI | D124: FIXAÇÃO (ENCUNHAMENTO) DE ALVENARIA DE VEDAÇÃO COM ARGAMASSA APLICADA COM BISNAGA. AF_03/2024 | E124: M | F124: 67.1 | G124: 11.76 | H124: 14.845824 | I124: 996.15
A125: 7.5.2 | B125: 97086 | C125: SINAPI | D125: FABRICAÇÃO, MONTAGEM E DESMONTAGEM DE FORMA PARA RADIER, PISO DE CONCRETO OU LAJE SOBRE SOLO, EM MADEIRA SERRADA, 4 UTILIZAÇÕES. AF_09/2021 | E125: M2 | F125: 6.32 | G125: 121 | H125: 152.7504 | I125: 965.38
A126: 3.9 | B126: 105115 | C126: SINAPI | D126: INSTALAÇÃO E DESINSTALAÇÃO MECANIZADA DE CONTÊINER OU MÓDULO HABITÁVEL DE USOS DIVERSOS. AF_03/2024 | E126: UND | F126: =3*2 -> 6 | G126: 125.7 | H126: 158.68368 | I126: 952.1
A127: 18.14 | B127: 10228 | C127: SINAPI | D127: VALVULA DE DESCARGA METALICA, BASE 1 1/2" E ACABAMENTO METALICO CROMADO | E127: UN | F127: 2 | G127: 376.83 | H127: 475.710192 | I127: 951.42
A128: 13.6 | B128: 98689 | C128: SINAPI | D128: SOLEIRA EM GRANITO, LARGURA 15 CM, ESPESSURA 2,0 CM. AF_09/2020 | E128: M | F128: 4.6 | G128: 147.47 | H128: 186.166128 | I128: 856.36
A129: 18.19 | B129: 38189 | C129: SINAPI | D129: DUCHA / CHUVEIRO METALICO, DE PAREDE, ARTICULAVEL, COM BRACO/CANO, SEM DESVIADOR | E129: UN | F129: 2 | G129: 337.35 | H129: 425.87064 | I129: 851.74
A130: 16.1.3 | B130: 9840 | C130: SINAPI | D130: TUBO PVC, SERIE R, DN 150 MM, PARA ESGOTO OU AGUAS PLUVIAIS PREDIAL (NBR 5688) | E130: M | F130: 15 | G130: 43.12 | H130: =(G130*26.24%)+G130 -> 54.434688 | I130: =ROUND(F130*H130,2) -> 816.52 | J130: =I130/$I$248 -> 
A131: 20.5.8 | B131: 39391 | C131: SINAPI | D131: LUMINARIA LED REFLETOR RETANGULAR BIVOLT, LUZ BRANCA, 50 W | E131: UN | F131: 20 | G131: 31.97 | H131: 40.358928 | I131: 807.18
A132: 7.3.1 | B132: 93184 | C132: SINAPI | D132: VERGA PRÉ-MOLDADA COM ATÉ 1,5 M DE VÃO, ESPESSURA DE *20* CM. AF_03/2024 | E132: M | F132: 19.1 | G132: 33.11 | H132: 41.798064 | I132: 798.34
A133: 18.4 | B133: 86902 | C133: SINAPI | D133: LAVATÓRIO LOUÇA BRANCA COM COLUNA, *44 X 35,5* CM, PADRÃO POPULAR - FORNECIMENTO E INSTALAÇÃO. AF_01/2020 | E133: UN | F133: 2 | G133: 307.49 | H133: 388.175376 | I133: 776.35
A134: 16.1.2 | B134: 89580 | C134: SINAPI | D134: TUBO PVC, SÉRIE R, ÁGUA PLUVIAL, DN 150 MM, FORNECIDO E INSTALADO EM CONDUTORES VERTICAIS DE ÁGUAS PLUVIAIS. AF_06/2022 | E134: M | F134: 12 | G134: 51.16 | H134: 64.584384 | I134: 775.01
A135: 18.5 | B135: 86877 | C135: SINAPI | D135: VÁLVULA EM METAL CROMADO 1.1/2" X 1.1/2" PARA TANQUE OU LAVATÓRIO, COM OU SEM LADRÃO - FORNECIMENTO E INSTALAÇÃO. AF_01/2020 | E135: UN | F135: 8 | G135: 74.54 | H135: 94.099296 | I135: 752.79
A136: 17.3 | B136: 89712 | C136: SINAPI | D136: TUBO PVC, SERIE NORMAL, ESGOTO PREDIAL, DN 50 MM, FORNECIDO E INSTALADO EM RAMAL DE DESCARGA OU RAMAL DE ESGOTO SANITÁRIO. AF_08/2022 | E136: M | F136: 25 | G136: 23.84 | H136: 30.095616 | I136: 752.39
A137: 17.2 | B137: 89711 | C137: SINAPI | D137: TUBO PVC, SERIE NORMAL, ESGOTO PREDIAL, DN 40 MM, FORNECIDO E INSTALADO EM RAMAL DE DESCARGA OU RAMAL DE ESGOTO SANITÁRIO. AF_08/2022 | E137: M | F137: 29.96 | G137: 19.34 | H137: 24.414816 | I137: 731.47
A138: 6.1.4 | B138: 96544 | C138: SINAPI | D138: ARMAÇÃO DE BLOCO UTILIZANDO AÇO CA-50 DE 6,3 MM - MONTAGEM. AF_01/2024 | E138: KG | F138: 28.81 | G138: 20 | H138: 25.248 | I138: 727.39
A139: 5.4 | B139: 93381 | C139: SINAPI | D139: REATERRO MECANIZADO DE VALA COM RETROESCAVADEIRA (CAPACIDADE DA CAÇAMBA DA RETRO: 0,26 M³/POTÊNCIA: 88 HP), LARGURA 0,8 A 1,5 M, PROFUNDIDADE 1,5 A 3,0 M, COM SOLO (SEM SUBSTITUIÇÃO) DE 1ª CATEGORIA E COMPACTADOR DE SOLOS DE PERCUSSÃO. AF_08/2023 | E139: M3 | F139: 42.9 | G139: 13.26 | H139: 16.739424 | I139: 718.12
A140: 20.4.2 | B140: 91928 | C140: SINAPI | D140: CABO DE COBRE FLEXÍVEL ISOLADO, 4 MM², ANTI-CHAMA 450/750 V, PARA CIRCUITOS TERMINAIS - FORNECIMENTO E INSTALAÇÃO. AF_03/2023 | E140: M | F140: 66 | G140: 7.82 | H140: 9.871968 | I140: 651.55
A141: 20.1.2 | B141: 101883 | C141: SINAPI | D141: QUADRO DE DISTRIBUIÇÃO DE ENERGIA EM CHAPA DE AÇO GALVANIZADO, DE EMBUTIR, COM BARRAMENTO TRIFÁSICO, PARA 18 DISJUNTORES DIN 100A - FORNECIMENTO E INSTALAÇÃO. AF_10/2020 | E141: UN | F141: 1 | G141: 515.71 | H141: 651.032304 | I141: 651.03
A142: 20.5.3 | B142: 95814 | C142: SINAPI | D142: CONDULETE DE PVC, TIPO TB, PARA ELETRODUTO DE PVC SOLDÁVEL DN 25 MM (3/4''), APARENTE - FORNECIMENTO E INSTALAÇÃO. AF_10/2022 | E142: UN | F142: 20 | G142: 25.51 | H142: 32.203824 | I142: 644.08
A143: 9.1.3 | B143: 102234 | C143: SINAPI | D143: PINTURA IMUNIZANTE PARA MADEIRA, 2 DEMÃOS. AF_01/2021 | E143: M2 | F143: 18.9 | G143: 26.16 | H143: 33.024384 | I143: 624.16
A144: 15.4 | B144: 89450 | C144: SINAPI | D144: TUBO, PVC, SOLDÁVEL, DE 60MM, INSTALADO EM PRUMADA DE ÁGUA - FORNECIMENTO E INSTALAÇÃO. AF_06/2022 | E144: M | F144: 18.48 | G144: 26.47 | H144: 33.415728 | I144: 617.52
A145: 21.1 | B145: 98463 | C145: SINAPI | D145: SUPORTE ISOLADOR PARA FIXAÇÃO DA CORDOALHA DE COBRE EM ALVENARIA OU CONCRETO - FORNECIMENTO E INSTALAÇÃO. AF_08/2023 | E145: UN | F145: 18 | G145: 26.25 | H145: 33.138 | I145: 596.48
A146: 20.3.6 | B146: 93016 | C146: SINAPI | D146: LUVA PARA ELETRODUTO, PVC, ROSCÁVEL, DN 85 MM (3"), PARA REDE ENTERRADA DE DISTRIBUIÇÃO DE ENERGIA ELÉTRICA - FORNECIMENTO E INSTALAÇÃO. AF_12/2021 | E146: UN | F146: 13 | G146: 36.24 | H146: 45.749376 | I146: 594.74
A147: 7.3.2 | B147: 93194 | C147: SINAPI | D147: CONTRAVERGA PRÉ-MOLDADA, ESPESSURA DE *20* CM. AF_03/2024 | E147: M | F147: 14.4 | G147: 32.5 | H147: 41.028 | I147: 590.8
A148: 18.17 | B148: 95547 | C148: SINAPI | D148: SABONETEIRA PLASTICA TIPO DISPENSER PARA SABONETE LIQUIDO COM RESERVATORIO 800 A 1500 ML, INCLUSO FIXAÇÃO. AF_01/2020 | E148: UN | F148: 6 | G148: 75.12 | H148: 94.831488 | I148: 568.99
A149: 14.2 | B149: 88497 | C149: SINAPI | D149: EMASSAMENTO COM MASSA LÁTEX, APLICAÇÃO EM PAREDE, DUAS DEMÃOS, LIXAMENTO MANUAL. AF_04/2023 | E149: M2 | F149: 27.51 | G149: 16.38 | H149: 20.678112 | I149: 568.85
A150: 15.17 | B150: 89362 | C150: SINAPI | D150: JOELHO 90 GRAUS, PVC, SOLDÁVEL, DN 25MM, INSTALADO EM RAMAL OU SUB-RAMAL DE ÁGUA - FORNECIMENTO E INSTALAÇÃO. AF_06/2022 | E150: UN | F150: 46 | G150: 9.27 | H150: 11.702448 | I150: 538.31
A151: 2.2 | B151: 25 | C151: SBC | D151: LEVANTAMENTO TOPOGRAFICO PLANIALTIMETRICO ATE 1 HECTARE | E151: M² | F151: 1066 | G151: 0.4 | H151: 0.50496 | I151: 538.29
A152: 15.6 | B152: 94713 | C152: SINAPI | D152: ADAPTADOR COM FLANGES LIVRES, PVC, SOLDÁVEL, DN 75 MM X 2 1/2 , INSTALADO EM RESERVAÇÃO PREDIAL DE ÁGUA - FORNECIMENTO E INSTALAÇÃO. AF_04/2024 | E152: UN | F152: 2 | G152: 212.63 | H152: 268.424112 | I152: 536.85
A153: 18.15 | B153: 37401 | C153: SINAPI | D153: TOALHEIRO PLASTICO TIPO DISPENSER PARA PAPEL TOALHA INTERFOLHADO | E153: UN | F153: 6 | G153: 67.31 | H153: 84.972144 | I153: 509.83
A154: 15.1 | B154: 89446 | C154: SINAPI | D154: TUBO, PVC, SOLDÁVEL, DE 25MM, INSTALADO EM PRUMADA DE ÁGUA - FORNECIMENTO E INSTALAÇÃO. AF_06/2022 | E154: M | F154: 81.18 | G154: 4.94 | H154: 6.236256 | I154: 506.26
A155: 15.28 | B155: 89628 | C155: SINAPI | D155: TE, PVC, SOLDÁVEL, DN 60MM, INSTALADO EM PRUMADA DE ÁGUA - FORNECIMENTO E INSTALAÇÃO. AF_06/2022 | E155: UN | F155: 9 | G155: 44.04 | H155: 55.596096 | I155: 500.36
A156: 21.5 | B156: 98463 | C156: SINAPI | D156: SUPORTE ISOLADOR PARA FIXAÇÃO DA CORDOALHA DE COBRE EM ALVENARIA OU CONCRETO - FORNECIMENTO E INSTALAÇÃO. AF_08/2023 | E156: UN | F156: 15 | G156: 26.25 | H156: 33.138 | I156: 497.07
A157: 20.3.8 | B157: 91943 | C157: SINAPI | D157: CAIXA RETANGULAR 4" X 4" MÉDIA (1,30 M DO PISO), PVC, INSTALADA EM PAREDE - FORNECIMENTO E INSTALAÇÃO. AF_03/2023 | E157: UN | F157: 17 | G157: 22.18 | H157: 28.000032 | I157: 476
A158: 19.3 | B158: 37557 | C158: SINAPI | D158: PLACA DE SINALIZACAO DE SEGURANCA CONTRA INCENDIO, FOTOLUMINESCENTE, QUADRADA, *14 X 14* CM, EM PVC *2* MM ANTI-CHAMAS (SIMBOLOS, CORES E PICTOGRAMAS CONFORME NBR 16820) | E158: UN | F158: 18 | G158: 20.92 | H158: 26.409408 | I158: 475.37
A159: 20.1.1 | B159: 101875 | C159: SINAPI | D159: QUADRO DE DISTRIBUIÇÃO DE ENERGIA EM CHAPA DE AÇO GALVANIZADO, DE EMBUTIR, COM BARRAMENTO TRIFÁSICO, PARA 12 DISJUNTORES DIN 100A - FORNECIMENTO E INSTALAÇÃO. AF_10/2020 | E159: UN | F159: 1 | G159: 374.92 | H159: 473.299008 | I159: 473.3
A160: 15.35 | B160: 94499 | C160: SINAPI | D160: REGISTRO DE GAVETA BRUTO, LATÃO, ROSCÁVEL, 2 1/2" - FORNECIMENTO E INSTALAÇÃO. AF_08/2021 | E160: UN | F160: 1 | G160: 336.26 | H160: 424.494624 | I160: 424.49
A161: 21.6 | B161: 104749 | C161: SINAPI | D161: CONECTOR GRAMPO METÁLICO TIPO OLHAL, PARA SPDA, PARA HASTE DE ATERRAMENTO DE 3/4'' E CABOS DE 10 A 50 MM2 - FORNECIMENTO E INSTALAÇÃO. AF_08/2023 | E161: UN | F161: 15 | G161: 21.44 | H161: 27.065856 | I161: 405.99
A162: 17.23 | B162: 89707 | C162: SINAPI | D162: CAIXA SIFONADA, PVC, DN 100 X 100 X 50 MM, JUNTA ELÁSTICA, FORNECIDA E INSTALADA EM RAMAL DE DESCARGA OU EM RAMAL DE ESGOTO SANITÁRIO. AF_08/2022 | E162: UN | F162: 6 | G162: 51.71 | H162: 65.278704 | I162: 391.67
A163: 2.4 | B163: * | C163: CREA/AP | D163: ART DE OBRAS E SERVIÇOS - CREA/AP | E163: UND | F163: 3 | G163: 103.03 | H163: 130.065072 | I163: 390.2
A164: 18.16 | B164: 95544 | C164: SINAPI | D164: PAPELEIRA DE PAREDE EM METAL CROMADO SEM TAMPA, INCLUSO FIXAÇÃO. AF_01/2020 | E164: UN | F164: 5 | G164: 61.25 | H164: 77.322 | I164: 386.61
A165: 20.5.6 | B165: 91996 | C165: SINAPI | D165: TOMADA MÉDIA DE EMBUTIR (1 MÓDULO), 2P+T 10 A, INCLUINDO SUPORTE E PLACA - FORNECIMENTO E INSTALAÇÃO. AF_03/2023 | E165: UN | F165: 8 | G165: 37.63 | H165: 47.504112 | I165: 380.03
A166: 19.1 | B166: 97599 | C166: SINAPI | D166: LUMINÁRIA DE EMERGÊNCIA, COM 30 LÂMPADAS LED DE 2 W, SEM REATOR - FORNECIMENTO E INSTALAÇÃO. AF_09/2024 | E166: UN | F166: =15 -> 15 | G166: 19.86 | H166: 25.071264 | I166: 376.07
A167: 20.3.2 | B167: 91873 | C167: SINAPI | D167: ELETRODUTO RÍGIDO ROSCÁVEL, PVC, DN 40 MM (1 1/4"), PARA CIRCUITOS TERMINAIS, INSTALADO EM PAREDE - FORNECIMENTO E INSTALAÇÃO. AF_03/2023 | E167: M | F167: 11.7 | G167: 24.34 | H167: 30.726816 | I167: 359.5
A168: 15.5 | B168: 89451 | C168: SINAPI | D168: TUBO, PVC, SOLDÁVEL, DE 75MM, INSTALADO EM PRUMADA DE ÁGUA - FORNECIMENTO E INSTALAÇÃO. AF_06/2022 | E168: M | F168: 6.28 | G168: 43.04 | H168: 54.333696 | I168: 341.22
A169: 18.20 | B169: 37399 | C169: SINAPI | D169: CABIDE/GANCHO DE BANHEIRO SIMPLES EM METAL CROMADO | E169: UN | F169: 8 | G169: 33.62 | H169: 42.441888 | I169: 339.54
A170: 20.5.1 | B170: 91996 | C170: SINAPI | D170: TOMADA MÉDIA DE EMBUTIR (1 MÓDULO), 2P+T 10 A, INCLUINDO SUPORTE E PLACA - FORNECIMENTO E INSTALAÇÃO. AF_03/2023 | E170: UN | F170: 7 | G170: 37.63 | H170: 47.504112 | I170: 332.53
A171: 17.19 | B171: 89748 | C171: SINAPI | D171: CURVA CURTA 90 GRAUS, PVC, SERIE NORMAL, ESGOTO PREDIAL, DN 100 MM, JUNTA ELÁSTICA, FORNECIDO E INSTALADO EM RAMAL DE DESCARGA OU RAMAL DE ESGOTO SANITÁRIO. AF_08/2022 | E171: UN | F171: 7 | G171: 36.94 | H171: 46.633056 | I171: 326.43
A172: 15.3 | B172: 89448 | C172: SINAPI | D172: TUBO, PVC, SOLDÁVEL, DE 50MM, INSTALADO EM PRUMADA DE ÁGUA - FORNECIMENTO E INSTALAÇÃO. AF_06/2022 | E172: M | F172: 15.27 | G172: 16.57 | H172: 20.917968 | I172: 319.42
A173: 20.5.2 | B173: 95817 | C173: SINAPI | D173: CONDULETE DE PVC, TIPO X, PARA ELETRODUTO DE PVC SOLDÁVEL DN 25 MM (3/4"), APARENTE - FORNECIMENTO E INSTALAÇÃO. AF_10/2022 | E173: UN | F173: 6 | G173: 39.29 | H173: 49.599696 | I173: 297.6
A174: 20.5.4 | B174: 95817 | C174: SINAPI | D174: CONDULETE DE PVC, TIPO X, PARA ELETRODUTO DE PVC SOLDÁVEL DN 25 MM (3/4"), APARENTE - FORNECIMENTO E INSTALAÇÃO. AF_10/2022 | E174: UN | F174: 6 | G174: 39.29 | H174: 49.599696 | I174: 297.6
A175: 18.2 | B175: 100849 | C175: SINAPI | D175: ASSENTO SANITÁRIO CONVENCIONAL - FORNECIMENTO E INSTALACAO. AF_01/2020 | E175: UN | F175: 5 | G175: 46.99 | H175: 59.320176 | I175: 296.6
A176: 21.4 | B176: 98111 | C176: SINAPI | D176: CAIXA DE INSPEÇÃO PARA ATERRAMENTO, CIRCULAR, EM POLIETILENO, DIÂMETRO INTERNO = 0,3 M. AF_12/2020 | E176: UN | F176: 4 | G176: 58.68 | H176: 74.077632 | I176: 296.31
A177: 17.25 | B177: 89708 | C177: SINAPI | D177: CAIXA SIFONADA, PVC, DN 150 X 185 X 75 MM, JUNTA ELÁSTICA, FORNECIDA E INSTALADA EM RAMAL DE DESCARGA OU EM RAMAL DE ESGOTO SANITÁRIO. AF_08/2022 | E177: UN | F177: 2 | G177: 112.72 | H177: 142.297728 | I177: 284.6
A178: 22.5 | B178: 100861 | C178: SINAPI | D178: SUPORTE MÃO FRANCESA EM AÇO, ABAS IGUAIS 30 CM, CAPACIDADE MINIMA 60 KG, BRANCO - FORNECIMENTO E INSTALAÇÃO. AF_01/2020 | E178: UN | F178: 6 | G178: 34.41 | H178: 43.439184 | I178: 260.64
A179: 20.5.5 | B179: 91953 | C179: SINAPI | D179: INTERRUPTOR SIMPLES (1 MÓDULO), 10A/250V, INCLUINDO SUPORTE E PLACA - FORNECIMENTO E INSTALAÇÃO. AF_03/2023 | E179: UN | F179: 6 | G179: 32.14 | H179: 40.573536 | I179: 243.44
A180: 15.7 | B180: 89429 | C180: SINAPI | D180: ADAPTADOR CURTO COM BOLSA E ROSCA PARA REGISTRO, PVC, SOLDÁVEL, DN 25MM X 3/4 , INSTALADO EM RAMAL DE DISTRIBUIÇÃO DE ÁGUA - FORNECIMENTO E INSTALAÇÃO. AF_06/2022 | E180: UN | F180: 31 | G180: 5.93 | H180: 7.486032 | I180: 232.07
A181: 15.8 | B181: 104001 | C181: SINAPI | D181: ADAPTADOR CURTO COM BOLSA E ROSCA PARA REGISTRO, PVC, SOLDÁVEL, DN 50MM X 1.1/2", INSTALADO EM RAMAL DE DISTRIBUIÇÃO DE ÁGUA - FORNECIMENTO E INSTALAÇÃO. AF_06/2022 | E181: UN | F181: 14 | G181: 13.12 | H181: 16.562688 | I181: 231.88
A182: 9.2.3 | B182: 11026 | C182: SINAPI | D182: CHAPA DE ACO GALVANIZADA BITOLA GSG 14, E = 1,95 MM (15,60 KG/M2) PARA AS PORTAS | E182: M² | F182: 15.6 | G182: 11.28 | H182: 14.239872 | I182: 222.14
A183: 20.2.1 | B183: 93653 | C183: SINAPI | D183: DISJUNTOR MONOPOLAR TIPO DIN, CORRENTE NOMINAL DE 10A - FORNECIMENTO E INSTALAÇÃO. AF_10/2020 | E183: UN | F183: 13 | G183: 12.89 | H183: 16.272336 | I183: 211.54
A184: 15.24 | B184: 89366 | C184: SINAPI | D184: JOELHO 90 GRAUS COM BUCHA DE LATÃO, PVC, SOLDÁVEL, DN 25MM, X 3/4 INSTALADO EM RAMAL OU SUB-RAMAL DE ÁGUA - FORNECIMENTO E INSTALAÇÃO. AF_06/2022 | E184: UN | F184: 10 | G184: 15.33 | H184: 19.352592 | I184: 193.53
A185: 20.2.4 | B185: 39445 | C185: SINAPI | D185: DISPOSITIVO DR, 2 POLOS, SENSIBILIDADE DE 30 MA, CORRENTE DE 25 A, TIPO AC | E185: UN | F185: 1 | G185: 152.17 | H185: 192.099408 | I185: 192.1
A186: 15.19 | B186: 89505 | C186: SINAPI | D186: JOELHO 90 GRAUS, PVC, SOLDÁVEL, DN 60MM, INSTALADO EM PRUMADA DE ÁGUA - FORNECIMENTO E INSTALAÇÃO. AF_06/2022 | E186: UN | F186: 4 | G186: 37.83 | H186: 47.756592 | I186: 191.03
A187: 17.13 | B187: 89690 | C187: SINAPI | D187: JUNÇÃO SIMPLES, PVC, SERIE R, ÁGUA PLUVIAL, DN 100 X 100 MM, JUNTA ELÁSTICA, FORNECIDO E INSTALADO EM CONDUTORES VERTICAIS DE ÁGUAS PLUVIAIS. AF_06/2022 | E187: UN | F187: 2 | G187: 74.93 | H187: 94.591632 | I187: 189.18
A188: 15.29 | B188: 89629 | C188: SINAPI | D188: TE, PVC, SOLDÁVEL, DN 75MM, INSTALADO EM PRUMADA DE ÁGUA - FORNECIMENTO E INSTALAÇÃO. AF_06/2022 | E188: UN | F188: 2 | G188: 73.48 | H188: 92.761152 | I188: 185.52
A189: 17.20 | B189: 89728 | C189: SINAPI | D189: CURVA CURTA 90 GRAUS, PVC, SERIE NORMAL, ESGOTO PREDIAL, DN 40 MM, JUNTA SOLDÁVEL, FORNECIDO E INSTALADO EM RAMAL DE DESCARGA OU RAMAL DE ESGOTO SANITÁRIO. AF_08/2022 | E189: UN | F189: 12 | G189: 11.72 | H189: 14.795328 | I189: 177.54
A190: 5.3 | B190: 101617 | C190: SINAPI | D190: PREPARO DE FUNDO DE VALA COM LARGURA MAIOR OU IGUAL A 1,5 M E MENOR QUE 2,5 M (ACERTO DO SOLO NATURAL). AF_08/2020 | E190: M2 | F190: 45.72 | G190: 3.07 | H190: 3.875568 | I190: 177.19
A191: 20.2.3 | B191: 93657 | C191: SINAPI | D191: DISJUNTOR MONOPOLAR TIPO DIN, CORRENTE NOMINAL DE 32A - FORNECIMENTO E INSTALAÇÃO. AF_10/2020 | E191: UN | F191: 8 | G191: 16.41 | H191: 20.715984 | I191: 165.73
A192: 16.1.6 | B192: 89567 | C192: SINAPI | D192: JUNÇÃO SIMPLES, PVC, SERIE R, ÁGUA PLUVIAL, DN 100 X 100 MM, JUNTA ELÁSTICA, FORNECIDO E INSTALADO EM RAMAL DE ENCAMINHAMENTO. AF_06/2022 | E192: UN | F192: 2 | G192: 65.53 | H192: 82.725072 | I192: 165.45
A193: 20.1.3 | B193: 101938 | C193: SINAPI | D193: CAIXA DE PROTEÇÃO PARA MEDIDOR MONOFÁSICO DE EMBUTIR - FORNECIMENTO E INSTALAÇÃO. AF_10/2020 | E193: UN | F193: 1 | G193: 121.9 | H193: 153.88656 | I193: 153.89
A194: 17.4 | B194: 89511 | C194: SINAPI | D194: TUBO PVC, SÉRIE R, ÁGUA PLUVIAL, DN 75 MM, FORNECIDO E INSTALADO EM RAMAL DE ENCAMINHAMENTO. AF_06/2022 | E194: M | F194: 3.66 | G194: 31.91 | H194: =(G194*26.24%)+G194 -> 40.283184 | I194: =ROUND(F194*H194,2) -> 147.44 | J194: =I194/$I$248 -> 
A195: 15.9 | B195: 104002 | C195: SINAPI | D195: ADAPTADOR CURTO COM BOLSA E ROSCA PARA REGISTRO, PVC, SOLDÁVEL, DN 50MM X 1.1/4", INSTALADO EM RAMAL DE DISTRIBUIÇÃO DE ÁGUA - FORNECIMENTO E INSTALAÇÃO. AF_06/2022 | E195: UN | F195: 7 | G195: 16.39 | H195: 20.690736 | I195: 144.84
A196: 15.31 | B196: 86884 | C196: SINAPI | D196: ENGATE FLEXÍVEL EM PLÁSTICO BRANCO, 1/2" X 30CM - FORNECIMENTO E INSTALAÇÃO. AF_01/2020 | E196: UN | F196: 10 | G196: 11.3 | H196: 14.26512 | I196: 142.65
A197: 20.2.6 | B197: 93673 | C197: SINAPI | D197: DISJUNTOR TRIPOLAR TIPO DIN, CORRENTE NOMINAL DE 50A - FORNECIMENTO E INSTALAÇÃO. AF_10/2020 | E197: UN | F197: 1 | G197: 105.65 | H197: 133.37256 | I197: 133.37
A198: 17.7 | B198: 89732 | C198: SINAPI | D198: JOELHO 45 GRAUS, PVC, SERIE NORMAL, ESGOTO PREDIAL, DN 50 MM, JUNTA ELÁSTICA, FORNECIDO E INSTALADO EM RAMAL DE DESCARGA OU RAMAL DE ESGOTO SANITÁRIO. AF_08/2022 | E198: UN | F198: 7 | G198: 15.01 | H198: 18.948624 | I198: 132.64
A199: 18.6 | B199: 86883 | C199: SINAPI | D199: SIFÃO DO TIPO FLEXÍVEL EM PVC 1 X 1.1/2 - FORNECIMENTO E INSTALAÇÃO. AF_01/2020 | E199: UN | F199: 8 | G199: 13.13 | H199: 16.575312 | I199: 132.6
A200: 20.3.10 | B200: 39811 | C200: SINAPI | D200: CAIXA DE PASSAGEM ELETRICA DE PAREDE, DE EMBUTIR, EM PVC, COM TAMPA APARAFUSADA, DIMENSOES 150 X 150 X *75* MM | E200: UN | F200: 2 | G200: 50.4 | H200: 63.62496 | I200: 127.25
... 48 more rows

Sheet ANALÍTICO (hidden)
A2: Ministério do Desenvolvimento Regional - MDR
A3: Companhia de Desenvolvimento dos Vales do São Francisco e do Parnaíba
A5: ORÇAMENTO ANALÍTICO
A7: OBJETO: SERVIÇOS COMUNS DE ENGENHARIA PARA EXECUÇÃO DE PÁTIO PARA MÚLTIPLOS USOS EM DIVERSOS MUNICÍPIOS DO ESTADO DO AMAPÁ SOB A ÁREA DE ATUAÇÃO DA 11ª SUPERINTENDÊNCIA REGIONAL DA CODEVASF ATRAVÉS DE SISTEMA DE REGISTRO DE PREÇOS - SRP (ZONA 1)
A10: 1 | D10: PROJETO EXECUTIVO | J10: 3254.7
B11: Código | C11: Banco | D11: Descrição | E11: Tipo | G11: Und | H11: Quant. | I11: Valor Unit | J11: Total
A12: Insumo | B12: 00034782 | C12: SINAPI | D12: ENGENHEIRO CIVIL SENIOR | E12: Mão de Obra | G12: H | H12: 1 | I12: 171.88 | J12: 171.88
E13: MO sem LS => | F13: 171.88 | G13: LS => | H13: 0 | I13: MO com LS => | J13: 171.88
E14: Valor do BDI => | H14: Valor com BDI => | J14: 216.98
G15: Quant. => | H15: 15,00 | I15: Preço Total => | J15: 3254.7
A17: 2 | D17: SERVIÇOS PRELIMINARES | J17: 130643.3
A18: 2.1 | B18: Código | C18: Banco | D18: Descrição | E18: Tipo | G18: Und | H18: Quant. | I18: Valor Unit | J18: Total
A19: Composição | B19: MS-0009 | C19: Próprio | D19: ADMINISTRAÇÃO LOCAL 11ª SR - 6 MESES | E19: CANT - CANTEIRO DE OBRAS | G19: UND | H19: 1 | I19: 69327.38 | J19: 69327.38
A20: Composição Auxiliar | B20: 90778 | C20: SINAPI | D20: ENGENHEIRO CIVIL DE OBRA PLENO COM ENCARGOS COMPLEMENTARES | E20: SEDI - SERVIÇOS DIVERSOS | G20: H | H20: 96 | I20: 135.94 | J20: 13050.24
A21: Composição Auxiliar | B21: 90780 | C21: SINAPI | D21: MESTRE DE OBRAS COM ENCARGOS COMPLEMENTARES | E21: SEDI - SERVIÇOS DIVERSOS | G21: H | H21: 1320 | I21: 42.36 | J21: 55915.2
A22: Insumo | B22: 00044480 | C22: SINAPI | D22: TARIFA "A" ENTRE 0 E 20M3 FORNECIMENTO D'AGUA | E22: Taxas | G22: m³ | H22: 18.35 | I22: 19.67 | J22: 360.94
A23: Insumo | B23: 00014250 | C23: SINAPI | D23: ENERGIA ELETRICA COMERCIAL, BAIXA TENSAO, RELATIVA AO CONSUMO DE ATE 100 KWH, INCLUINDO ICMS, PIS/PASEP E COFINS | E23: Material | G23: KW/H | H23: 0.97 | I23: 1.04 | J23: 1
E24: MO sem LS => | F24: 65056.32 | G24: LS => | H24: 0 | I24: MO com LS => | J24: 65056.32
E25: Valor do BDI => | F25: 18191.5 | H25: Valor com BDI => | J25: 87518.88
G26: Quant. => | H26: 1,00 | I26: Preço Total => | J26: 87518.88
A28: 2.2 | B28: Código | C28: Banco | D28: Descrição | E28: Tipo | G28: Und | H28: Quant. | I28: Valor Unit | J28: Total
A29: Composição | B29: MS-0008 | C29: Próprio | D29: PLACA DE OBRA (3,60M X 1,80M) | E29: SERP - SERVIÇOS PRELIMINARES | G29: M² | H29: 1 | I29: 517.93 | J29: 517.93
A30: Composição Auxiliar | B30: 88262 | C30: SINAPI | D30: CARPINTEIRO DE FORMAS COM ENCARGOS COMPLEMENTARES | E30: SEDI - SERVIÇOS DIVERSOS | G30: H | H30: 1 | I30: 25.79 | J30: 25.79
A31: Composição Auxiliar | B31: 87445 | C31: SINAPI | D31: BETONEIRA CAPACIDADE NOMINAL 400 L, CAPACIDADE DE MISTURA 310 L, MOTOR A DIESEL POTÊNCIA 5,0 HP, SEM CARREGADOR - CHP DIURNO. AF_05/2023 | E31: CHOR - CUSTOS HORÁRIOS DE MÁQUINAS E EQUIPAMENTOS | G31: CHP | H31: 0.01 | I31: 5.79 | J31: 0.05
A32: Composição Auxiliar | B32: 88316 | C32: SINAPI | D32: SERVENTE COM ENCARGOS COMPLEMENTARES | E32: SEDI - SERVIÇOS DIVERSOS | G32: H | H32: 2.06 | I32: 19.85 | J32: 40.89
A33: Insumo | B33: 00004813 | C33: SINAPI | D33: PLACA DE OBRA (PARA CONSTRUCAO CIVIL) EM CHAPA GALVANIZADA *N. 22*, ADESIVADA, DE *2,4 X 1,2* M (SEM POSTES PARA FIXACAO) | E33: Material | G33: M² | H33: 1 | I33: 400 | J33: 400
A34: Insumo | B34: 00004491 | C34: SINAPI | D34: PONTALETE *7,5 X 7,5* CM EM PINUS, MISTA OU EQUIVALENTE DA REGIAO - BRUTA | E34: Material | G34: M | H34: 4 | I34: 9.42 | J34: 37.68
A35: Insumo | B35: 00004417 | C35: SINAPI | D35: SARRAFO NAO APARELHADO *2,5 X 7* CM, EM MACARANDUBA/MASSARANDUBA, ANGELIM, PEROBA-ROSA OU EQUIVALENTE DA REGIAO - BRUTA | E35: Material | G35: M | H35: 1 | I35: 5.32 | J35: 5.32
A36: Insumo | B36: 00001379 | C36: SINAPI | D36: CIMENTO PORTLAND COMPOSTO CP II-32 | E36: Material | G36: KG | H36: 1.5 | I36: 1.12 | J36: 1.68
A37: Insumo | B37: 00004718 | C37: SINAPI | D37: PEDRA BRITADA N. 2 (19 A 38 MM) POSTO PEDREIRA/FORNECEDOR, SEM FRETE | E37: Material | G37: M³ | H37: 0.01 | I37: 325 | J37: 3.25
A38: Insumo | B38: 00005075 | C38: SINAPI | D38: PREGO DE ACO POLIDO COM CABECA 18 X 30 (2 3/4 X 10) | E38: Material | G38: KG | H38: 0.11 | I38: 16.12 | J38: 1.77
A39: Insumo | B39: 00000370 | C39: SINAPI | D39: AREIA MEDIA - POSTO JAZIDA/FORNECEDOR (RETIRADO NA JAZIDA, SEM TRANSPORTE) | E39: Material | G39: M³ | H39: 0.01 | I39: 150 | J39: 1.5
E40: MO sem LS => | F40: 53.13 | G40: LS => | H40: 0 | I40: MO com LS => | J40: 53.13
E41: Valor do BDI => | F41: 135.9 | H41: Valor com BDI => | J41: 653.83
G42: Quant. => | H42: 6,48 | I42: Preço Total => | J42: 4236.81
A44: 2.3 | B44: Código | C44: Banco | D44: Descrição | E44: Tipo | G44: Und | H44: Quant. | I44: Valor Unit | J44: Total
A45: Composição | B45: 4657 | C45: ORSE | D45: Locação de container - Escritório com banheiro - 6,20 x 2,40m - Rev 02_02/2022 | E45: Mobilização / Instalações Provisórias / Desmobilização | G45: mês | H45: 1 | I45: 1600 | J45: 1600
A46: Item | B46: Código | C46: Banco | D46: Descrição | E46: Tipo | G46: Und | H46: Quant. | I46: Valor Unit | J46: Total
A47: Insumo | B47: 4298 | C47: ORSE | D47: Aluguel de container - Escritório com banheiro - 6,20 x 2,40m, equipado com Ar condicionado | E47: Serviços | G47: mês | H47: 1 | I47: 1.600,00 | J47: 1.600,00
A48: Detalhamento de Cálculo ORSE
A49: Item | B49: Código | C49: Banco | D49: Descrição | E49: Tipo | G49: Und | H49: Quant. | I49: Valor Unit | J49: Total
A50: Insumo | B50: 4298 | C50: ORSE | D50: Aluguel de container - Escritório com banheiro - 6,20 x 2,40m, equipado com Ar condicionado | E50: Serviços | G50: mês | H50: 1 | I50: 1.600,00 | J50: 1.600,00
E51: MO sem LS => | F51: 0 | G51: LS => | H51: 0 | I51: MO com LS => | J51: 0
E52: Valor do BDI => | F52: 419.84 | H52: Valor com BDI => | J52: 2019.84
G53: Quant. => | H53: 6,00 | I53: Preço Total => | J53: 12119.04
A55: 2.4 | B55: Código | C55: Banco | D55: Descrição | E55: Tipo | G55: Und | H55: Quant. | I55: Valor Unit | J55: Total
A56: Composição | B56: 012212 | C56: SBC | D56: BARRACAO PARA DEPOSITO EM CHAPA DE MADEIRA COMPENSADA | E56: INSTALACOES PROVISORIAS | G56: m² | H56: 1 | I56: 954.59 | J56: 954.59
A57: Insumo | B57: 001825 | C57: SBC | D57: MADEIRA DE LEI-RIPA 5x1,5cm | E57: Material | G57: M | H57: 4.949 | I57: 3.03 | J57: 14.99
A58: Insumo | B58: 012721 | C58: SBC | D58: FECHADURA INTERNA 40mm ACO CROMADO ACETINADO UNA Z AROUCA | E58: Material | G58: UN | H58: 0.089 | I58: 170 | J58: 15.13
A59: Insumo | B59: 012743 | C59: SBC | D59: DOBRADICA FERRO GALVANIZADO 1.1/2"x 3" | E59: Material | G59: UN | H59: 0.48 | I59: 9.06 | J59: 4.34
A60: Insumo | B60: 099350 | C60: SBC | D60: CARPINTEIRO DE FORMAS | E60: Mão de Obra | G60: H | H60: 7.554 | I60: 20.222368 | J60: 152.75
A61: Insumo | B61: 001420 | C61: SBC | D61: PREGO FERRO GALVANIZADO 17x21 (305 un/kg) | E61: Material | G61: KG | H61: 0.39 | I61: 24.99 | J61: 9.74
A62: Insumo | B62: 001350 | C62: SBC | D62: PONTALETE 7,5x7,5cm (3x3") PERNA/BARROTE/ESTRONCA | E62: Material | G62: M | H62: 9.86 | I62: 8.71 | J62: 85.88
A63: Insumo | B63: 099449 | C63: SBC | D63: AJUDANTE DE CARPINTEIRO | E63: Mão de Obra | G63: H | H63: 10.121 | I63: 16.0665 | J63: 162.6
A64: Insumo | B64: 099900 | C64: SBC | D64: SERVENTE | E64: Mão de Obra | G64: H | H64: 10.703 | I64: 15.31673 | J64: 163.93
A65: Insumo | B65: 002004 | C65: SBC | D65: TELHA CIMENTICIA ONDULADA 5mm 1,83x1,10 (2,01m2) | E65: Material | G65: m² | H65: 1.23 | I65: 24.53 | J65: 30.17
A66: Insumo | B66: 001250 | C66: SBC | D66: TABUA NAO APARELHADA 2,50x20cm MASSARANDURA/ANGELIN OU EQUIVALENTE BRUTA | E66: Material | G66: M | H66: 6.1 | I66: 22.47 | J66: 137.06
A67: Insumo | B67: 006473 | C67: SBC | D67: CHAPA DE COMPENSADO RESINADO FENOLICO 12mm 2,20x1.10m(2,42m2) | E67: Material | G67: m² | H67: 4.824 | I67: 36.9 | J67: 178
E68: MO sem LS => | F68: 479.28 | G68: LS => | H68: 0 | I68: MO com LS => | J68: 479.28
E69: Valor do BDI => | F69: 250.48 | H69: Valor com BDI => | J69: 1205.07
G70: Quant. => | H70: 10,00 | I70: Preço Total => | J70: 12050.7
A72: 2.5 | B72: Código | C72: Banco | D72: Descrição | E72: Tipo | G72: Und | H72: Quant. | I72: Valor Unit | J72: Total
A73: Composição | B73: 4177 | C73: ORSE | D73: Locação de construção de edificação acima de 1000 m2, inclusive execução de gabarito de madeira | E73: Locação de Edificações | G73: m² | H73: 1 | I73: 5.61 | J73: 5.61
A74: Item | B74: Código | C74: Banco | D74: Descrição | E74: Tipo | G74: Und | H74: Quant. | I74: Valor Unit | J74: Total
A75: Composição | B75: 10549 | C75: ORSE | D75: Encargos Complementares - Servente | E75: Provisórios | G75: h | H75: 0.04 | I75: 3,80 | J75: 0,15
A76: Insumo | B76: 48 | C76: ORSE | D76: Auxiliar topografia - SICRO | E76: Mão de Obra | G76: h | H76: 0.02 | I76: 21,66 | J76: 0,43
A77: Insumo | B77: 1569 | C77: ORSE | D77: Madeira mista serrada (barrote) 6 x 6cm - 0,0036 m3/m (angelim, louro) | E77: Material | G77: m | H77: 0.09 | I77: 6,69 | J77: 0,60
A78: Insumo | B78: 00001213/SINAPI | C78: ORSE | D78: Carpinteiro de formas para concreto (horista) | E78: Mão de Obra | G78: h | H78: 0.04 | I78: 19,02 | J78: 0,76
A79: Insumo | B79: 00005067/SINAPI | C79: ORSE | D79: Prego de aco polido com cabeca 16 x 24 (2 1/4 x 12) | E79: Material | G79: kg | H79: 0.012 | I79: 18,01 | J79: 0,21
A80: Composição | B80: 10551 | C80: ORSE | D80: Encargos Complementares - Carpinteiro | E80: Provisórios | G80: h | H80: 0.04 | I80: 3,71 | J80: 0,14
A81: Insumo | B81: 00000345/SINAPI | C81: ORSE | D81: Arame galvanizado 18 bwg, d = 1,24mm (0,009 kg/m) | E81: Material | G81: kg | H81: 0.02 | I81: 35,89 | J81: 0,71
A82: Insumo | B82: 00006111/SINAPI | C82: ORSE | D82: Servente de obras (horista) | E82: Mão de Obra | G82: h | H82: 0.04 | I82: 14,58 | J82: 0,58
A83: Insumo | B83: 70 | C83: ORSE | D83: Topógrafo - SICRO | E83: Mão de Obra | G83: h | H83: 0.02 | I83: 36,76 | J83: 0,73
A84: Insumo | B84: 00010567/SINAPI | C84: ORSE | D84: Tabua *2,5 x 23* cm em pinus, mista ou equivalente da regiao - bruta | E84: Material | G84: m | H84: 0.11 | I84: 12,27 | J84: 1,34
A85: Detalhamento de Cálculo ORSE
A86: Item | B86: Código | C86: Banco | D86: Descrição | E86: Tipo | G86: Und | H86: Quant. | I86: Valor Unit | J86: Total
A87: Insumo | B87: 941 | C87: ORSE | D87: Fardamento com mangas curta | E87: Material | G87: un | H87: 0.00012 | I87: 195,36 | J87: 0,02
A88: Insumo | B88: 4729 | C88: ORSE | D88: Marreta 1 kg com cabo | E88: Material | G88: un | H88: 4e-06 | I88: 37,80 | J88: 0,00
A89: Insumo | B89: 00012893/SINAPI | C89: ORSE | D89: Bota de seguranca com biqueira de aco e colarinho acolchoado | E89: Material | G89: par | H89: 6e-05 | I89: 67,20 | J89: 0,00
A90: Insumo | B90: 2378 | C90: ORSE | D90: Vale transporte | E90: Material | G90: un | H90: 0.00638 | I90: 4,50 | J90: 0,02
A91: Insumo | B91: 10761 | C91: ORSE | D91: Refeição - café da manhã ( café com leite e dois pães com manteiga) | E91: Serviços | G91: un | H91: 0.008144 | I91: 5,00 | J91: 0,04
A92: Insumo | B92: 00012894/SINAPI | C92: ORSE | D92: Capa para chuva em pvc com forro de poliester, com capuz (amarela ou azul) | E92: Material | G92: un | H92: 1.6e-05 | I92: 18,20 | J92: 0,00
A93: Insumo | B93: 10492 | C93: ORSE | D93: Cesta Básica | E93: Material | G93: un | H93: 0.00036 | I93: 190,00 | J93: 0,06
A94: Insumo | B94: 10517 | C94: ORSE | D94: Exames admissionais/demissionais (checkup) | E94: Serviços | G94: cj | H94: 3.2e-05 | I94: 300,00 | J94: 0,00
A95: Insumo | B95: 00002711/SINAPI | C95: ORSE | D95: Carrinho de mao, em aco, com capacidade de *45 a 65* l / *100* kg, pneu com camara | E95: Material | G95: un | H95: 8e-06 | I95: 175,45 | J95: 0,00
A96: Insumo | B96: 158 | C96: ORSE | D96: Almoço (Participação do empregador) | E96: Material | G96: un | H96: 0.008144 | I96: 14,00 | J96: 0,11
A97: Insumo | B97: 00012895/SINAPI | C97: ORSE | D97: Capacete de seguranca aba frontal com suspensao de polietileno, sem jugular (classe b) | E97: Material | G97: un | H97: 4.8e-05 | I97: 14,00 | J97: 0,00
A98: Insumo | B98: 10788 | C98: ORSE | D98: Pá quadrada | E98: Material | G98: un | H98: 8e-06 | I98: 36,90 | J98: 0,00
A99: Insumo | B99: 00012892/SINAPI | C99: ORSE | D99: Luva raspa de couro, cano curto (punho *7* cm) | E99: Material | G99: par | H99: 0.000184 | I99: 12,60 | J99: 0,00
A100: Insumo | B100: 4728 | C100: ORSE | D100: Talhadeira chata 10" | E100: Material | G100: un | H100: 1.2e-05 | I100: 18,58 | J100: 0,00
A101: Insumo | B101: 1651 | C101: ORSE | D101: Óculos branco proteção | E101: Material | G101: pr | H101: 6e-05 | I101: 7,00 | J101: 0,00
A102: Insumo | B102: 10596 | C102: ORSE | D102: Protetor auricular | E102: Material | G102: un | H102: 0.00036 | I102: 4,90 | J102: 0,00
A103: Insumo | B103: 10599 | C103: ORSE | D103: Protetor solar fps 30 com 120ml | E103: Material | G103: un | H103: 0.000144 | I103: 18,00 | J103: 0,00
A104: Insumo | B104: 10362 | C104: ORSE | D104: Seguro de vida e acidente em grupo | E104: Serviços | G104: un | H104: 0.00036 | I104: 12,54 | J104: 0,00
A105: Insumo | B105: 48 | C105: ORSE | D105: Auxiliar topografia - SICRO | E105: Mão de Obra | G105: h | H105: 0.02 | I105: 21,66 | J105: 0,43
A106: Insumo | B106: 1569 | C106: ORSE | D106: Madeira mista serrada (barrote) 6 x 6cm - 0,0036 m3/m (angelim, louro) | E106: Material | G106: m | H106: 0.09 | I106: 6,69 | J106: 0,60
A107: Insumo | B107: 00001213/SINAPI | C107: ORSE | D107: Carpinteiro de formas para concreto (horista) | E107: Mão de Obra | G107: h | H107: 0.04 | I107: 19,02 | J107: 0,76
A108: Insumo | B108: 00005067/SINAPI | C108: ORSE | D108: Prego de aco polido com cabeca 16 x 24 (2 1/4 x 12) | E108: Material | G108: kg | H108: 0.012 | I108: 18,01 | J108: 0,21
A109: Insumo | B109: 11248 | C109: ORSE | D109: Furadeira e Parafusadeira eletrica Bosch ou Similar profissional | E109: Equipamento | G109: un | H109: 4e-06 | I109: 246,00 | J109: 0,00
A110: Insumo | B110: 11244 | C110: ORSE | D110: Martelo com unha | E110: Material | G110: un | H110: 8e-06 | I110: 48,95 | J110: 0,00
A111: Insumo | B111: 11249 | C111: ORSE | D111: Serra circular eletrica portatil | E111: Equipamento | G111: un | H111: 4e-06 | I111: 617,95 | J111: 0,00
A112: Insumo | B112: 10578 | C112: ORSE | D112: Formão grande | E112: Material | G112: un | H112: 8e-06 | I112: 15,15 | J112: 0,00
A113: Insumo | B113: 10577 | C113: ORSE | D113: Serrote 40cm | E113: Material | G113: un | H113: 4e-06 | I113: 29,90 | J113: 0,00
A114: Insumo | B114: 10579 | C114: ORSE | D114: Chave de fenda chata 30 cm | E114: Material | G114: un | H114: 8e-06 | I114: 26,89 | J114: 0,00
A115: Insumo | B115: 00000345/SINAPI | C115: ORSE | D115: Arame galvanizado 18 bwg, d = 1,24mm (0,009 kg/m) | E115: Material | G115: kg | H115: 0.02 | I115: 35,89 | J115: 0,71
A116: Insumo | B116: 00006111/SINAPI | C116: ORSE | D116: Servente de obras (horista) | E116: Mão de Obra | G116: h | H116: 0.04 | I116: 14,58 | J116: 0,58
A117: Insumo | B117: 70 | C117: ORSE | D117: Topógrafo - SICRO | E117: Mão de Obra | G117: h | H117: 0.02 | I117: 36,76 | J117: 0,73
A118: Insumo | B118: 00010567/SINAPI | C118: ORSE | D118: Tabua *2,5 x 23* cm em pinus, mista ou equivalente da regiao - bruta | E118: Material | G118: m | H118: 0.11 | I118: 12,27 | J118: 1,34
E119: MO sem LS => | F119: 2.5 | G119: LS => | H119: 0 | I119: MO com LS => | J119: 2.5
E120: Valor do BDI => | F120: 1.47 | H120: Valor com BDI => | J120: 7.08
G121: Quant. => | H121: 918,22 | I121: Preço Total => | J121: 6500.99
A123: 2.6 | B123: Código | C123: Banco | D123: Descrição | E123: Tipo | G123: Und | H123: Quant. | I123: Valor Unit | J123: Total
A124: Composição | B124: 105118 | C124: SINAPI | D124: TAPUME EM CHAPA DE MADEIRA OSB. AF_03/2024 | E124: Instalações para Canteiros de Obras | G124: m² | H124: 1 | I124: 64.34 | J124: 64.34
A125: Composição Auxiliar | B125: 91693 | C125: SINAPI | D125: SERRA CIRCULAR DE BANCADA COM MOTOR ELÉTRICO POTÊNCIA DE 5HP, COM COIFA PARA DISCO 10" - CHI DIURNO. AF_08/2015 | E125: CHOR - CUSTOS HORÁRIOS DE MÁQUINAS E EQUIPAMENTOS | G125: CHI | H125: 0.0264 | I125: 34.23 | J125: 0.9
A126: Composição Auxiliar | B126: 88262 | C126: SINAPI | D126: CARPINTEIRO DE FORMAS COM ENCARGOS COMPLEMENTARES | E126: SEDI - SERVIÇOS DIVERSOS | G126: H | H126: 0.79 | I126: 25.79 | J126: 20.37
A127: Composição Auxiliar | B127: 88239 | C127: SINAPI | D127: AJUDANTE DE CARPINTEIRO COM ENCARGOS COMPLEMENTARES | E127: SEDI - SERVIÇOS DIVERSOS | G127: H | H127: 0.529 | I127: 21.73 | J127: 11.49
A128: Composição Auxiliar | B128: 94974 | C128: SINAPI | D128: CONCRETO MAGRO PARA LASTRO, TRAÇO 1:4,5:4,5 (EM MASSA SECA DE CIMENTO/ AREIA MÉDIA/ BRITA 1) - PREPARO MANUAL. AF_05/2021 | E128: FUES - FUNDAÇÕES E ESTRUTURAS | G128: m³ | H128: 0.0061 | I128: 691.08 | J128: 4.21
A129: Composição Auxiliar | B129: 91692 | C129: SINAPI | D129: SERRA CIRCULAR DE BANCADA COM MOTOR ELÉTRICO POTÊNCIA DE 5HP, COM COIFA PARA DISCO 10" - CHP DIURNO. AF_08/2015 | E129: CHOR - CUSTOS HORÁRIOS DE MÁQUINAS E EQUIPAMENTOS | G129: CHP | H129: 0.0066 | I129: 35.68 | J129: 0.23
A130: Insumo | B130: 00005061 | C130: SINAPI | D130: PREGO DE ACO POLIDO COM CABECA 18 X 27 (2 1/2 X 10) | E130: Material | G130: KG | H130: 0.068 | I130: 15.85 | J130: 1.07
A131: Insumo | B131: 00006194 | C131: SINAPI | D131: TABUA *2,5 X 15 CM EM PINUS, MISTA OU EQUIVALENTE DA REGIAO - BRUTA | E131: Material | G131: M | H131: 2 | I131: 6.73 | J131: 13.46
A132: Insumo | B132: 00004491 | C132: SINAPI | D132: PONTALETE *7,5 X 7,5* CM EM PINUS, MISTA OU EQUIVALENTE DA REGIAO - BRUTA | E132: Material | G132: M | H132: 1.2273 | I132: 9.42 | J132: 11.56
A133: Insumo | B133: 00044673 | C133: SINAPI | D133: CHAPA DE MADEIRA OSB, DE 2,20 X 1,10 M, E = 14 MM | E133: Material | G133: m² | H133: 1.05 | I133: 1 | J133: 1.05
E134: MO sem LS => | F134: 27.72 | G134: LS => | H134: 0 | I134: MO com LS => | J134: 27.72
E135: Valor do BDI => | F135: 16.88 | H135: Valor com BDI => | J135: 81.22
G136: Quant. => | H136: 57,20 | I136: Preço Total => | J136: 4645.78
A138: 2.7 | B138: Código | C138: Banco | D138: Descrição | E138: Tipo | G138: Und | H138: Quant. | I138: Valor Unit | J138: Total
A139: Composição | B139: 98525 | C139: SINAPI | D139: LIMPEZA MECANIZADA DE CAMADA VEGETAL, VEGETAÇÃO E PEQUENAS ÁRVORES (DIÂMETRO DE TRONCO MENOR QUE 0,20 M), COM TRATOR DE ESTEIRAS. AF_03/2024 | E139: URBA - URBANIZAÇÃO | G139: m² | H139: 1 | I139: 0.67 | J139: 0.67
A140: Composição Auxiliar | B140: 88441 | C140: SINAPI | D140: JARDINEIRO COM ENCARGOS COMPLEMENTARES | E140: SEDI - SERVIÇOS DIVERSOS | G140: H | H140: 0.0046 | I140: 20.3 | J140: 0.09
A141: Composição Auxiliar | B141: 89032 | C141: SINAPI | D141: TRATOR DE ESTEIRAS, POTÊNCIA 100 HP, PESO OPERACIONAL 9,4 T, COM LÂMINA 2,19 M3 - CHP DIURNO. AF_06/2014 | E141: CHOR - CUSTOS HORÁRIOS DE MÁQUINAS E EQUIPAMENTOS | G141: CHP | H141: 0.0017 | I141: 210.06 | J141: 0.35
A142: Composição Auxiliar | B142: 89031 | C142: SINAPI | D142: TRATOR DE ESTEIRAS, POTÊNCIA 100 HP, PESO OPERACIONAL 9,4 T, COM LÂMINA 2,19 M3 - CHI DIURNO. AF_06/2014 | E142: CHOR - CUSTOS HORÁRIOS DE MÁQUINAS E EQUIPAMENTOS | G142: CHI | H142: 0.0029 | I142: 82.48 | J142: 0.23
E143: MO sem LS => | F143: 0.2 | G143: LS => | H143: 0 | I143: MO com LS => | J143: 0.2
E144: Valor do BDI => | F144: 0.17 | H144: Valor com BDI => | J144: 0.84
G145: Quant. => | H145: 1.066,00 | I145: Preço Total => | J145: 895.44
A147: 2.8 | B147: Código | C147: Banco | D147: Descrição | E147: Tipo | G147: Und | H147: Quant. | I147: Valor Unit | J147: Total
A148: Composição | B148: 100576 | C148: SINAPI | D148: REGULARIZAÇÃO E COMPACTAÇÃO DE SUBLEITO DE SOLO PREDOMINANTEMENTE ARGILOSO, PARA OBRAS DE CONSTRUÇÃO DE PAVIMENTOS. AF_09/2024 | E148: PAVI - PAVIMENTAÇÃO | G148: m² | H148: 1 | I148: 1.99 | J148: 1.99
A149: Composição Auxiliar | B149: 5901 | C149: SINAPI | D149: CAMINHÃO PIPA 10.000 L TRUCADO, PESO BRUTO TOTAL 23.000 KG, CARGA ÚTIL MÁXIMA 15.935 KG, DISTÂNCIA ENTRE EIXOS 4,8 M, POTÊNCIA 230 CV, INCLUSIVE TANQUE DE AÇO PARA TRANSPORTE DE ÁGUA - CHP DIURNO. AF_06/2014 | E149: CHOR - CUSTOS HORÁRIOS DE MÁQUINAS E EQUIPAMENTOS | G149: CHP | H149: 0.0010702 | I149: 329.53 | J149: 0.35
A150: Composição Auxiliar | B150: 88316 | C150: SINAPI | D150: SERVENTE COM ENCARGOS COMPLEMENTARES | E150: SEDI - SERVIÇOS DIVERSOS | G150: H | H150: 0.0086152 | I150: 19.85 | J150: 0.17
A151: Composição Auxiliar | B151: 96463 | C151: SINAPI | D151: ROLO COMPACTADOR DE PNEUS, ESTÁTICO, PRESSÃO VARIÁVEL, POTÊNCIA 110 HP, PESO SEM/COM LASTRO 10,8/27 T, LARGURA DE ROLAGEM 2,30 M - CHP DIURNO. AF_06/2017 | E151: CHOR - CUSTOS HORÁRIOS DE MÁQUINAS E EQUIPAMENTOS | G151: CHP | H151: 0.0007511 | I151: 229.93 | J151: 0.17
A152: Composição Auxiliar | B152: 5903 | C152: SINAPI | D152: CAMINHÃO PIPA 10.000 L TRUCADO, PESO BRUTO TOTAL 23.000 KG, CARGA ÚTIL MÁXIMA 15.935 KG, DISTÂNCIA ENTRE EIXOS 4,8 M, POTÊNCIA 230 CV, INCLUSIVE TANQUE DE AÇO PARA TRANSPORTE DE ÁGUA - CHI DIURNO. AF_06/2014 | E152: CHOR - CUSTOS HORÁRIOS DE MÁQUINAS E EQUIPAMENTOS | G152: CHI | H152: 0.0025892 | I152: 69.69 | J152: 0.18
A153: Composição Auxiliar | B153: 96464 | C153: SINAPI | D153: ROLO COMPACTADOR DE PNEUS, ESTÁTICO, PRESSÃO VARIÁVEL, POTÊNCIA 110 HP, PESO SEM/COM LASTRO 10,8/27 T, LARGURA DE ROLAGEM 2,30 M - CHI DIURNO. AF_06/2017 | E153: CHOR - CUSTOS HORÁRIOS DE MÁQUINAS E EQUIPAMENTOS | G153: CHI | H153: 0.0029083 | I153: 94.35 | J153: 0.27
A154: Composição Auxiliar | B154: 5932 | C154: SINAPI | D154: MOTONIVELADORA POTÊNCIA BÁSICA LÍQUIDA (PRIMEIRA MARCHA) 125 HP, PESO BRUTO 13032 KG, LARGURA DA LÂMINA DE 3,7 M - CHP DIURNO. AF_06/2014 | E154: CHOR - CUSTOS HORÁRIOS DE MÁQUINAS E EQUIPAMENTOS | G154: CHP | H154: 0.0003025 | I154: 259.84 | J154: 0.07
A155: Composição Auxiliar | B155: 5934 | C155: SINAPI | D155: MOTONIVELADORA POTÊNCIA BÁSICA LÍQUIDA (PRIMEIRA MARCHA) 125 HP, PESO BRUTO 13032 KG, LARGURA DA LÂMINA DE 3,7 M - CHI DIURNO. AF_06/2014 | E155: CHOR - CUSTOS HORÁRIOS DE MÁQUINAS E EQUIPAMENTOS | G155: CHI | H155: 0.0083127 | I155: 94.75 | J155: 0.78
E156: MO sem LS => | F156: 0.5 | G156: LS => | H156: 0 | I156: MO com LS => | J156: 0.5
E157: Valor do BDI => | F157: 0.52 | H157: Valor com BDI => | J157: 2.51
G158: Quant. => | H158: 1.066,00 | I158: Preço Total => | J158: 2675.66
A160: 3 | D160: MOVIMENTO DE TERRA PARA FUNDAÇÕES | J160: 6494.59
A161: 3.1 | B161: Código | C161: Banco | D161: Descrição | E161: Tipo | G161: Und | H161: Quant. | I161: Valor Unit | J161: Total
A162: Composição | B162: 94318 | C162: SINAPI | D162: ATERRO MECANIZADO DE VALA COM RETROESCAVADEIRA (CAPACIDADE DA CAÇAMBA DA RETRO: 0,26 M³ / POTÊNCIA: 88 HP), LARGURA ATÉ 1,5 M, PROFUNDIDADE DE 1,5 A 3,0 M, COM SOLO ARGILO-ARENOSO. AF_08/2023 | E162: MOVT - MOVIMENTO DE TERRA | G162: m³ | H162: 1 | I162: 66.83 | J162: 66.83
A163: Composição Auxiliar | B163: 5678 | C163: SINAPI | D163: RETROESCAVADEIRA SOBRE RODAS COM CARREGADEIRA, TRAÇÃO 4X4, POTÊNCIA LÍQ. 88 HP, CAÇAMBA CARREG. CAP. MÍN. 1 M3, CAÇAMBA RETRO CAP. 0,26 M3, PESO OPERACIONAL MÍN. 6.674 KG, PROFUNDIDADE ESCAVAÇÃO MÁX. 4,37 M - CHP DIURNO. AF_06/2014 | E163: CHOR - CUSTOS HORÁRIOS DE MÁQUINAS E EQUIPAMENTOS | G163: CHP | H163: 0.0222 | I163: 146.71 | J163: 3.25
A164: Composição Auxiliar | B164: 5901 | C164: SINAPI | D164: CAMINHÃO PIPA 10.000 L TRUCADO, PESO BRUTO TOTAL 23.000 KG, CARGA ÚTIL MÁXIMA 15.935 KG, DISTÂNCIA ENTRE EIXOS 4,8 M, POTÊNCIA 230 CV, INCLUSIVE TANQUE DE AÇO PARA TRANSPORTE DE ÁGUA - CHP DIURNO. AF_06/2014 | E164: CHOR - CUSTOS HORÁRIOS DE MÁQUINAS E EQUIPAMENTOS | G164: CHP | H164: 0.0054 | I164: 329.53 | J164: 1.77
A165: Composição Auxiliar | B165: 88316 | C165: SINAPI | D165: SERVENTE COM ENCARGOS COMPLEMENTARES | E165: SEDI - SERVIÇOS DIVERSOS | G165: H | H165: 0.0303 | I165: 19.85 | J165: 0.6
A166: Composição Auxiliar | B166: 5679 | C166: SINAPI | D166: RETROESCAVADEIRA SOBRE RODAS COM CARREGADEIRA, TRAÇÃO 4X4, POTÊNCIA LÍQ. 88 HP, CAÇAMBA CARREG. CAP. MÍN. 1 M3, CAÇAMBA RETRO CAP. 0,26 M3, PESO OPERACIONAL MÍN. 6.674 KG, PROFUNDIDADE ESCAVAÇÃO MÁX. 4,37 M - CHI DIURNO. AF_06/2014 | E166: CHOR - CUSTOS HORÁRIOS DE MÁQUINAS E EQUIPAMENTOS | G166: CHI | H166: 0.0321 | I166: 58.88 | J166: 1.89
A167: Composição Auxiliar | B167: 91533 | C167: SINAPI | D167: COMPACTADOR DE SOLOS DE PERCUSSÃO (SOQUETE) COM MOTOR A GASOLINA 4 TEMPOS, POTÊNCIA 4 CV - CHP DIURNO. AF_08/2015 | E167: CHOR - CUSTOS HORÁRIOS DE MÁQUINAS E EQUIPAMENTOS | G167: CHP | H167: 0.1285 | I167: 42.46 | J167: 5.45
A168: Composição Auxiliar | B168: 5903 | C168: SINAPI | D168: CAMINHÃO PIPA 10.000 L TRUCADO, PESO BRUTO TOTAL 23.000 KG, CARGA ÚTIL MÁXIMA 15.935 KG, DISTÂNCIA ENTRE EIXOS 4,8 M, POTÊNCIA 230 CV, INCLUSIVE TANQUE DE AÇO PARA TRANSPORTE DE ÁGUA - CHI DIURNO. AF_06/2014 | E168: CHOR - CUSTOS HORÁRIOS DE MÁQUINAS E EQUIPAMENTOS | G168: CHI | H168: 0.0006 | I168: 69.69 | J168: 0.04
A169: Insumo | B169: 00006079 | C169: SINAPI | D169: ARGILA, ARGILA VERMELHA OU ARGILA ARENOSA (RETIRADA NA JAZIDA, SEM TRANSPORTE) | E169: Material | G169: M³ | H169: 1.3889 | I169: 38.76 | J169: 53.83
E170: MO sem LS => | F170: 5.74 | G170: LS => | H170: 0 | I170: MO com LS => | J170: 5.74
E171: Valor do BDI => | F171: 17.53 | H171: Valor com BDI => | J171: 84.36
G172: Quant. => | H172: 14,08 | I172: Preço Total => | J172: 1187.78
A174: 3.2 | B174: Código | C174: Banco | D174: Descrição | E174: Tipo | G174: Und | H174: Quant. | I174: Valor Unit | J174: Total
A175: Composição | B175: 96525 | C175: SINAPI | D175: ESCAVAÇÃO MECANIZADA PARA VIGA BALDRAME OU SAPATA CORRIDA COM MINI-ESCAVADEIRA (INCLUINDO ESCAVAÇÃO PARA COLOCAÇÃO DE FÔRMAS). AF_01/2024 | E175: MOVT - MOVIMENTO DE TERRA | G175: m³ | H175: 1 | I175: 53 | J175: 53
A176: Composição Auxiliar | B176: 88316 | C176: SINAPI | D176: SERVENTE COM ENCARGOS COMPLEMENTARES | E176: SEDI - SERVIÇOS DIVERSOS | G176: H | H176: 0.136 | I176: 19.85 | J176: 2.69
A177: Composição Auxiliar | B177: 96245 | C177: SINAPI | D177: MINIESCAVADEIRA SOBRE ESTEIRAS, POTÊNCIA LÍQUIDA DE *30* HP, PESO OPERACIONAL DE *3.500* KG - CHP DIURNO. AF_04/2017 | E177: CHOR - CUSTOS HORÁRIOS DE MÁQUINAS E EQUIPAMENTOS | G177: CHP | H177: 0.328 | I177: 115.74 | J177: 37.96
A178: Composição Auxiliar | B178: 96246 | C178: SINAPI | D178: MINIESCAVADEIRA SOBRE ESTEIRAS, POTÊNCIA LÍQUIDA DE *30* HP, PESO OPERACIONAL DE *3.500* KG - CHI DIURNO. AF_04/2017 | E178: CHOR - CUSTOS HORÁRIOS DE MÁQUINAS E EQUIPAMENTOS | G178: CHI | H178: 0.164 | I178: 61.59 | J178: 10.1
A179: Composição Auxiliar | B179: 88309 | C179: SINAPI | D179: PEDREIRO COM ENCARGOS COMPLEMENTARES | E179: SEDI - SERVIÇOS DIVERSOS | G179: H | H179: 0.086 | I179: 26.21 | J179: 2.25
E180: MO sem LS => | F180: 15 | G180: LS => | H180: 0 | I180: MO com LS => | J180: 15
E181: Valor do BDI => | F181: 13.9 | H181: Valor com BDI => | J181: 66.9
G182: Quant. => | H182: 66,28 | I182: Preço Total => | J182: 4434.13
A184: 3.3 | B184: Código | C184: Banco | D184: Descrição | E184: Tipo | G184: Und | H184: Quant. | I184: Valor Unit | J184: Total
A185: Composição | B185: 101617 | C185: SINAPI | D185: PREPARO DE FUNDO DE VALA COM LARGURA MAIOR OU IGUAL A 1,5 M E MENOR QUE 2,5 M (ACERTO DO SOLO NATURAL). AF_08/2020 | E185: MOVT - MOVIMENTO DE TERRA | G185: m² | H185: 1 | I185: 2.93 | J185: 2.93
A186: Composição Auxiliar | B186: 88316 | C186: SINAPI | D186: SERVENTE COM ENCARGOS COMPLEMENTARES | E186: SEDI - SERVIÇOS DIVERSOS | G186: H | H186: 0.076 | I186: 19.85 | J186: 1.5
A187: Composição Auxiliar | B187: 88309 | C187: SINAPI | D187: PEDREIRO COM ENCARGOS COMPLEMENTARES | E187: SEDI - SERVIÇOS DIVERSOS | G187: H | H187: 0.0507 | I187: 26.21 | J187: 1.32
A188: Composição Auxiliar | B188: 91534 | C188: SINAPI | D188: COMPACTADOR DE SOLOS DE PERCUSSÃO (SOQUETE) COM MOTOR A GASOLINA 4 TEMPOS, POTÊNCIA 4 CV - CHI DIURNO. AF_08/2015 | E188: CHOR - CUSTOS HORÁRIOS DE MÁQUINAS E EQUIPAMENTOS | G188: CHI | H188: 0.0016 | I188: 35.17 | J188: 0.05
A189: Composição Auxiliar | B189: 91533 | C189: SINAPI | D189: COMPACTADOR DE SOLOS DE PERCUSSÃO (SOQUETE) COM MOTOR A GASOLINA 4 TEMPOS, POTÊNCIA 4 CV - CHP DIURNO. AF_08/2015 | E189: CHOR - CUSTOS HORÁRIOS DE MÁQUINAS E EQUIPAMENTOS | G189: CHP | H189: 0.0016 | I189: 42.46 | J189: 0.06
E190: MO sem LS => | F190: 2.33 | G190: LS => | H190: 0 | I190: MO com LS => | J190: 2.33
E191: Valor do BDI => | F191: 0.76 | H191: Valor com BDI => | J191: 3.69
G192: Quant. => | H192: 45,72 | I192: Preço Total => | J192: 168.7
A194: 3.4 | B194: Código | C194: Banco | D194: Descrição | E194: Tipo | G194: Und | H194: Quant. | I194: Valor Unit | J194: Total
A195: Composição | B195: 93381 | C195: SINAPI | D195: REATERRO MECANIZADO DE VALA COM RETROESCAVADEIRA (CAPACIDADE DA CAÇAMBA DA RETRO: 0,26 M³/POTÊNCIA: 88 HP), LARGURA 0,8 A 1,5 M, PROFUNDIDADE 1,5 A 3,0 M, COM SOLO (SEM SUBSTITUIÇÃO) DE 1ª CATEGORIA E COMPACTADOR DE SOLOS DE PERCUSSÃO. AF_08/2023 | E195: MOVT - MOVIMENTO DE TERRA | G195: m³ | H195: 1 | I195: 13 | J195: 13
A196: Composição Auxiliar | B196: 5903 | C196: SINAPI | D196: CAMINHÃO PIPA 10.000 L TRUCADO, PESO BRUTO TOTAL 23.000 KG, CARGA ÚTIL MÁXIMA 15.935 KG, DISTÂNCIA ENTRE EIXOS 4,8 M, POTÊNCIA 230 CV, INCLUSIVE TANQUE DE AÇO PARA TRANSPORTE DE ÁGUA - CHI DIURNO. AF_06/2014 | E196: CHOR - CUSTOS HORÁRIOS DE MÁQUINAS E EQUIPAMENTOS | G196: CHI | H196: 0.0006 | I196: 69.69 | J196: 0.04
A197: Composição Auxiliar | B197: 5901 | C197: SINAPI | D197: CAMINHÃO PIPA 10.000 L TRUCADO, PESO BRUTO TOTAL 23.000 KG, CARGA ÚTIL MÁXIMA 15.935 KG, DISTÂNCIA ENTRE EIXOS 4,8 M, POTÊNCIA 230 CV, INCLUSIVE TANQUE DE AÇO PARA TRANSPORTE DE ÁGUA - CHP DIURNO. AF_06/2014 | E197: CHOR - CUSTOS HORÁRIOS DE MÁQUINAS E EQUIPAMENTOS | G197: CHP | H197: 0.0054 | I197: 329.53 | J197: 1.77
A198: Composição Auxiliar | B198: 5678 | C198: SINAPI | D198: RETROESCAVADEIRA SOBRE RODAS COM CARREGADEIRA, TRAÇÃO 4X4, POTÊNCIA LÍQ. 88 HP, CAÇAMBA CARREG. CAP. MÍN. 1 M3, CAÇAMBA RETRO CAP. 0,26 M3, PESO OPERACIONAL MÍN. 6.674 KG, PROFUNDIDADE ESCAVAÇÃO MÁX. 4,37 M - CHP DIURNO. AF_06/2014 | E198: CHOR - CUSTOS HORÁRIOS DE MÁQUINAS E EQUIPAMENTOS | G198: CHP | H198: 0.0222 | I198: 146.71 | J198: 3.25
A199: Composição Auxiliar | B199: 5679 | C199: SINAPI | D199: RETROESCAVADEIRA SOBRE RODAS COM CARREGADEIRA, TRAÇÃO 4X4, POTÊNCIA LÍQ. 88 HP, CAÇAMBA CARREG. CAP. MÍN. 1 M3, CAÇAMBA RETRO CAP. 0,26 M3, PESO OPERACIONAL MÍN. 6.674 KG, PROFUNDIDADE ESCAVAÇÃO MÁX. 4,37 M - CHI DIURNO. AF_06/2014 | E199: CHOR - CUSTOS HORÁRIOS DE MÁQUINAS E EQUIPAMENTOS | G199: CHI | H199: 0.0321 | I199: 58.88 | J199: 1.89
A200: Composição Auxiliar | B200: 91533 | C200: SINAPI | D200: COMPACTADOR DE SOLOS DE PERCUSSÃO (SOQUETE) COM MOTOR A GASOLINA 4 TEMPOS, POTÊNCIA 4 CV - CHP DIURNO. AF_08/2015 | E200: CHOR - CUSTOS HORÁRIOS DE MÁQUINAS E EQUIPAMENTOS | G200: CHP | H200: 0.1285 | I200: 42.46 | J200: 5.45
A201: Composição Auxiliar | B201: 88316 | C201: SINAPI | D201: SERVENTE COM ENCARGOS COMPLEMENTARES | E201: SEDI - SERVIÇOS DIVERSOS | G201: H | H201: 0.0303 | I201: 19.85 | J201: 0.6
E202: MO sem LS => | F202: 5.74 | G202: LS => | H202: 0 | I202: MO com LS => | J202: 5.74
E203: Valor do BDI => | F203: 3.41 | H203: Valor com BDI => | J203: 16.41
G204: Quant. => | H204: 42,90 | I204: Preço Total => | J204: 703.98
A206: 4 | D206: FUNDAÇÕES | J206: 106380.87
A207: 4.1 | D207: CONCRETO ARMADO PARA FUNDAÇÕES - BLOCO SOBRE ESTACAS | J207: 79385.95
A208: 4.1.1 | B208: Código | C208: Banco | D208: Descrição | E208: Tipo | G208: Und | H208: Quant. | I208: Valor Unit | J208: Total
A209: Composição | B209: 100896 | C209: SINAPI | D209: ESTACA ESCAVADA MECANICAMENTE, SEM FLUIDO ESTABILIZANTE, COM 25CM DE DIÂMETRO, CONCRETO LANÇADO POR CAMINHÃO BETONEIRA (EXCLUSIVE MOBILIZAÇÃO E DESMOBILIZAÇÃO). AF_01/2020 | E209: FUES - FUNDAÇÕES E ESTRUTURAS | G209: M | H209: 1 | I209: 82.47 | J209: 82.47
A210: Composição Auxiliar | B210: 100973 | C210: SINAPI | D210: CARGA, MANOBRA E DESCARGA DE SOLOS E MATERIAIS GRANULARES EM CAMINHÃO BASCULANTE 6 M³ - CARGA COM PÁ CARREGADEIRA (CAÇAMBA DE 1,7 A 2,8 M³ / 128 HP) E DESCARGA LIVRE (UNIDADE: M3). AF_07/2020 | E210: TRAN - TRANSPORTES, CARGAS E DESCARGAS | G210: m³ | H210: 0.0614 | I210: 8.76 | J210: 0.53
A211: Composição Auxiliar | B211: 90681 | C211: SINAPI | D211: PERFURATRIZ HIDRÁULICA SOBRE CAMINHÃO COM TRADO CURTO ACOPLADO, PROFUNDIDADE MÁXIMA DE 20 M, DIÂMETRO MÁXIMO DE 1500 MM, POTÊNCIA INSTALADA DE 137 HP, MESA ROTATIVA COM TORQUE MÁXIMO DE 30 KNM - CHI DIURNO. AF_06/2015 | E211: CHOR - CUSTOS HORÁRIOS DE MÁQUINAS E EQUIPAMENTOS | G211: CHI | H211: 0.049 | I211: 175.9 | J211: 8.61
A212: Composição Auxiliar | B212: 88316 | C212: SINAPI | D212: SERVENTE COM ENCARGOS COMPLEMENTARES | E212: SEDI - SERVIÇOS DIVERSOS | G212: H | H212: 0.2263 | I212: 19.85 | J212: 4.49
A213: Composição Auxiliar | B213: 95578 | C213: SINAPI | D213: MONTAGEM DE ARMADURA DE ESTACAS, DIÂMETRO = 12,5 MM. AF_09/2021_PS | E213: FUES - FUNDAÇÕES E ESTRUTURAS | G213: KG | H213: 0.8491 | I213: 10.73 | J213: 9.11
A214: Composição Auxiliar | B214: 90680 | C214: SINAPI | D214: PERFURATRIZ HIDRÁULICA SOBRE CAMINHÃO COM TRADO CURTO ACOPLADO, PROFUNDIDADE MÁXIMA DE 20 M, DIÂMETRO MÁXIMO DE 1500 MM, POTÊNCIA INSTALADA DE 137 HP, MESA ROTATIVA COM TORQUE MÁXIMO DE 30 KNM - CHP DIURNO. AF_06/2015 | E214: CHOR - CUSTOS HORÁRIOS DE MÁQUINAS E EQUIPAMENTOS | G214: CHP | H214: 0.0247 | I214: 414.17 | J214: 10.22
A215: Composição Auxiliar | B215: 97913 | C215: SINAPI | D215: TRANSPORTE COM CAMINHÃO BASCULANTE DE 6 M³, EM VIA URBANA EM REVESTIMENTO PRIMÁRIO (UNIDADE: M3XKM). AF_07/2020 | E215: MOVT - MOVIMENTO DE TERRA | G215: M3XKM | H215: 0.0205 | I215: 3.28 | J215: 0.06
A216: Composição Auxiliar | B216: 90778 | C216: SINAPI | D216: ENGENHEIRO CIVIL DE OBRA PLENO COM ENCARGOS COMPLEMENTARES | E216: SEDI - SERVIÇOS DIVERSOS | G216: H | H216: 0.0051 | I216: 135.94 | J216: 0.69
A217: Insumo | B217: 00038405 | C217: SINAPI | D217: CONCRETO USINADO BOMBEAVEL, CLASSE DE RESISTENCIA C25, COM BRITA 0 E 1, SLUMP = 130 +/- 20 MM, EXCLUI SERVICO DE BOMBEAMENTO (NBR 8953) | E217: Material | G217: m³ | H217: 0.0557 | I217: 875.55 | J217: 48.76
E218: MO sem LS => | F218: 6.93 | G218: LS => | H218: 0 | I218: MO com LS => | J218: 6.93
... 2261 more rows

Sheet MEMÓRIA DE CÁLCULO
A2: Ministério do Desenvolvimento Regional - MDR
A3: Companhia de Desenvolvimento dos Vales do São Francisco e do Parnaíba
A5: MEMÓRIA DE CÁLCULO
A6: OBJETO: FORNECIMENTO, TRANSPORTE, INSTALAÇÃO E HOMOLOGAÇÃO, POR SISTEMA DE REGISTRO DE PREÇOS (SRP), DE SISTEMAS DE GERAÇÃO DE ENERGIA SOLAR FOTOVOLTAICA ON-GRID, DESTINADOS A ATENDER MUNICÍPIOS DA ÁREA DE ATUAÇÃO DA 11ª SUPERINTENDÊNCIA REGIONAL DA CODEVASF NO ESTADO DO AMAPÁ
A10: ITEM | B10: SERVIÇO | C10: UND | D10: MEMÓRIA | E10: TOTAL UNITÁRIO
A11: =SINTÉTICO!A15 -> 2 | B11: =SINTÉTICO!D15 -> SERVIÇOS COMPLEMENTARES AO SISTEMA DE GERAÇÃO DE 4,5 KWP
A12: =SINTÉTICO!A16 -> 2.1 | B12: =SINTÉTICO!D16 -> TRANSPORTE DE MÃO DE OBRA, MATERIAIS E EQUIPAMENTOS PARA EXECUÇÃO DOS SERVIÇOS COMPLEMENTARES | C12: =SINTÉTICO!E16 -> KM | D12: DMT ENTRE OS MUNICÍPIOS DO AMAPÁ, PARTINDO DA AV. FAB, MACAPÁ: [101 (ITAUBAL) + 2 (MACAPÁ) + 36,1 (MAZAGÃO) + 23,5 (SANTANA) + 273 (LARANJAL DO JARI) + 302 (VITÓRIA DO JARI) + 301 (AMAPÁ) + 364 (CALÇOENE) + 139 (CUTIAS) + 579 (OIAPOQUE) + 273 (PRACUÚBA) + 228 (TARTARUGALZINHO) + 137 (FERREIRA GOMES) + 187 (PEDRA BRANCA DO AMAPARI) + 112 (PORTO GRANDE) + 206 (SERRA DO NAVIO)] / 16 | E12: =SINTÉTICO!F16 -> 203.97
A13: =SINTÉTICO!A17 -> 2.2 | B13: =SINTÉTICO!D17 -> CERCA COM MOURÕES DE CONCRETO, RETO, H=2,30 M, ESPAÇAMENTO DE 2,5 M, CRAVADOS 0,5 M, ESCORAS DE 10 X 10 CM NOS CANTOS, COM 8 FIOS DE ARAME FARPADO Nº 14 CLASSE 250 - FORNECIMENTO E INSTALAÇÃO | C13: =SINTÉTICO!E17 -> M | D13: PERÍMETRO CERCADO, CONFORME TABELA DO ITEM 2.12.e) DA ESPECIFICAÇÃO TÉCNICA: 5,54 (LARGURA DA CERCA) x 2 + 9,07 (COMPRIMENTO DA CERCA) x 2 | E13: =SINTÉTICO!F17 -> 29.22
A14: =SINTÉTICO!A18 -> 2.3 | B14: =SINTÉTICO!D18 -> LASTRO COM MATERIAL GRANULAR (PEDRA BRITADA N.3), APLICADO EM PISOS OU LAJES SOBRE SOLO, ESPESSURA DE *10 CM*. AF_01/2024 | C14: =SINTÉTICO!E18 -> M³ | D14: ÁREA CERCADA x ESPESSURA DA CAMADA DE BRITA, CONFORME TABELA DO ITEM 2.12.e) DA ESPECIFICAÇÃO TÉCNICA: 5,54 (LARGURA) x 9,07 (COMPRIMENTO) x 0,10 (ESPESSURA CAMADA DE BRITA) | E14: =SINTÉTICO!F18 -> 5.02
A15: =SINTÉTICO!A19 -> 2.4 | B15: =SINTÉTICO!D19 -> PORTAO FERRO ABRIR COM PINTURA EM DUAS FACES | C15: =SINTÉTICO!E19 -> M² | D15: 1,50 (LARGURA) X 2,00 (ALTURA) | E15: =SINTÉTICO!F19 -> 3
A16: =SINTÉTICO!A24 -> 4 | B16: =SINTÉTICO!D24 -> SERVIÇOS COMPLEMENTARES AO SISTEMA DE GERAÇÃO DE 9,0 KWP
A17: =SINTÉTICO!A25 -> 4.1 | B17: =SINTÉTICO!D25 -> TRANSPORTE DE MÃO DE OBRA, MATERIAIS E EQUIPAMENTOS PARA EXECUÇÃO DOS SERVIÇOS COMPLEMENTARES | C17: =SINTÉTICO!E25 -> KM | D17: DMT ENTRE OS MUNICÍPIOS DO AMAPÁ, PARTINDO DA AV. FAB, MACAPÁ: [101 (ITAUBAL) + 2 (MACAPÁ) + 36,1 (MAZAGÃO) + 23,5 (SANTANA) + 273 (LARANJAL DO JARI) + 302 (VITÓRIA DO JARI) + 301 (AMAPÁ) + 364 (CALÇOENE) + 139 (CUTIAS) + 579 (OIAPOQUE) + 273 (PRACUÚBA) + 228 (TARTARUGALZINHO) + 137 (FERREIRA GOMES) + 187 (PEDRA BRANCA DO AMAPARI) + 112 (PORTO GRANDE) + 206 (SERRA DO NAVIO)] / 16 | E17: =SINTÉTICO!F25 -> 203.97
A18: =SINTÉTICO!A26 -> 4.2 | B18: =SINTÉTICO!D26 -> CERCA COM MOURÕES DE CONCRETO, RETO, H=2,30 M, ESPAÇAMENTO DE 2,5 M, CRAVADOS 0,5 M, ESCORAS DE 10 X 10 CM NOS CANTOS, COM 8 FIOS DE ARAME FARPADO Nº 14 CLASSE 250 - FORNECIMENTO E INSTALAÇÃO | C18: =SINTÉTICO!E26 -> M | D18: PERÍMETRO CERCADO, CONFORME TABELA DO ITEM 2.12.e) DA ESPECIFICAÇÃO TÉCNICA: 7,00 (LARGURA DA CERCA) x 2 + 12,00 (COMPRIMENTO DA CERCA) x 2 | E18: =SINTÉTICO!F26 -> 38
A19: =SINTÉTICO!A27 -> 4.3 | B19: =SINTÉTICO!D27 -> LASTRO COM MATERIAL GRANULAR (PEDRA BRITADA N.3), APLICADO EM PISOS OU LAJES SOBRE SOLO, ESPESSURA DE *10 CM*. AF_01/2024 | C19: =SINTÉTICO!E27 -> M³ | D19: ÁREA CERCADA x ESPESSURA DA CAMADA DE BRITA, CONFORME TABELA DO ITEM 2.12.e) DA ESPECIFICAÇÃO TÉCNICA: 7,00 (LARGURA) x 12,00 (COMPRIMENTO) x 0,10 (ESPESSURA CAMADA DE BRITA) | E19: =SINTÉTICO!F27 -> 8.4
A20: =SINTÉTICO!A28 -> 4.4 | B20: =SINTÉTICO!D28 -> PORTAO FERRO ABRIR COM PINTURA EM DUAS FACES | C20: =SINTÉTICO!E28 -> M² | D20: 1,50 (LARGURA) X 2,00 (ALTURA) | E20: =SINTÉTICO!F28 -> 3
A21: =SINTÉTICO!A33 -> 6 | B21: =SINTÉTICO!D33 -> SERVIÇOS COMPLEMENTARES AO SISTEMA DE GERAÇÃO DE 13,5 KWP
A22: =SINTÉTICO!A34 -> 6.1 | B22: =SINTÉTICO!D34 -> TRANSPORTE DE MÃO DE OBRA, MATERIAIS E EQUIPAMENTOS PARA EXECUÇÃO DOS SERVIÇOS COMPLEMENTARES | C22: =SINTÉTICO!E34 -> KM | D22: DMT ENTRE OS MUNICÍPIOS DO AMAPÁ, PARTINDO DA AV. FAB, MACAPÁ: [101 (ITAUBAL) + 2 (MACAPÁ) + 36,1 (MAZAGÃO) + 23,5 (SANTANA) + 273 (LARANJAL DO JARI) + 302 (VITÓRIA DO JARI) + 301 (AMAPÁ) + 364 (CALÇOENE) + 139 (CUTIAS) + 579 (OIAPOQUE) + 273 (PRACUÚBA) + 228 (TARTARUGALZINHO) + 137 (FERREIRA GOMES) + 187 (PEDRA BRANCA DO AMAPARI) + 112 (PORTO GRANDE) + 206 (SERRA DO NAVIO)] / 16 | E22: =SINTÉTICO!F34 -> 203.97
A23: =SINTÉTICO!A35 -> 6.2 | B23: =SINTÉTICO!D35 -> CERCA COM MOURÕES DE CONCRETO, RETO, H=2,30 M, ESPAÇAMENTO DE 2,5 M, CRAVADOS 0,5 M, ESCORAS DE 10 X 10 CM NOS CANTOS, COM 8 FIOS DE ARAME FARPADO Nº 14 CLASSE 250 - FORNECIMENTO E INSTALAÇÃO | C23: =SINTÉTICO!E35 -> M | D23: PERÍMETRO CERCADO, CONFORME TABELA DO ITEM 2.12.e) DA ESPECIFICAÇÃO TÉCNICA: 7,92 (LARGURA DA CERCA) x 2 + 13,83 (COMPRIMENTO DA CERCA) x 2 | E23: =SINTÉTICO!F35 -> 43.5
A24: =SINTÉTICO!A36 -> 6.3 | B24: =SINTÉTICO!D36 -> LASTRO COM MATERIAL GRANULAR (PEDRA BRITADA N.3), APLICADO EM PISOS OU LAJES SOBRE SOLO, ESPESSURA DE *10 CM*. AF_01/2024 | C24: =SINTÉTICO!E36 -> M³ | D24: ÁREA CERCADA x ESPESSURA DA CAMADA DE BRITA, CONFORME TABELA DO ITEM 2.12.e) DA ESPECIFICAÇÃO TÉCNICA: 7,92 (LARGURA) x 13,83 (COMPRIMENTO) x 0,10 (ESPESSURA CAMADA DE BRITA) | E24: =SINTÉTICO!F36 -> 10.95
A25: =SINTÉTICO!A37 -> 6.4 | B25: =SINTÉTICO!D37 -> PORTAO FERRO ABRIR COM PINTURA EM DUAS FACES | C25: =SINTÉTICO!E37 -> M² | D25: 1,50 (LARGURA) X 2,00 (ALTURA) | E25: =SINTÉTICO!F37 -> 3
A26: =SINTÉTICO!A42 -> 8 | B26: =SINTÉTICO!D42 -> SERVIÇOS COMPLEMENTARES AO SISTEMA DE GERAÇÃO DE 18,0 KWP
A27: =SINTÉTICO!A43 -> 8.1 | B27: =SINTÉTICO!D43 -> TRANSPORTE DE MÃO DE OBRA, MATERIAIS E EQUIPAMENTOS PARA EXECUÇÃO DOS SERVIÇOS COMPLEMENTARES | C27: =SINTÉTICO!E43 -> KM | D27: DMT ENTRE OS MUNICÍPIOS DO AMAPÁ, PARTINDO DA AV. FAB, MACAPÁ: [101 (ITAUBAL) + 2 (MACAPÁ) + 36,1 (MAZAGÃO) + 23,5 (SANTANA) + 273 (LARANJAL DO JARI) + 302 (VITÓRIA DO JARI) + 301 (AMAPÁ) + 364 (CALÇOENE) + 139 (CUTIAS) + 579 (OIAPOQUE) + 273 (PRACUÚBA) + 228 (TARTARUGALZINHO) + 137 (FERREIRA GOMES) + 187 (PEDRA BRANCA DO AMAPARI) + 112 (PORTO GRANDE) + 206 (SERRA DO NAVIO)] / 16 | E27: =SINTÉTICO!F43 -> 203.97
A28: =SINTÉTICO!A44 -> 8.2 | B28: =SINTÉTICO!D44 -> CERCA COM MOURÕES DE CONCRETO, RETO, H=2,30 M, ESPAÇAMENTO DE 2,5 M, CRAVADOS 0,5 M, ESCORAS DE 10 X 10 CM NOS CANTOS, COM 8 FIOS DE ARAME FARPADO Nº 14 CLASSE 250 - FORNECIMENTO E INSTALAÇÃO | C28: =SINTÉTICO!E44 -> M | D28: PERÍMETRO CERCADO, CONFORME TABELA DO ITEM 2.12.e) DA ESPECIFICAÇÃO TÉCNICA: 8,71 (LARGURA DA CERCA) x 2 + 15,42 (COMPRIMENTO DA CERCA) x 2 | E28: =SINTÉTICO!F44 -> 48.26
A29: =SINTÉTICO!A45 -> 8.3 | B29: =SINTÉTICO!D45 -> LASTRO COM MATERIAL GRANULAR (PEDRA BRITADA N.3), APLICADO EM PISOS OU LAJES SOBRE SOLO, ESPESSURA DE *10 CM*. AF_01/2024 | C29: =SINTÉTICO!E45 -> M³ | D29: ÁREA CERCADA x ESPESSURA DA CAMADA DE BRITA, CONFORME TABELA DO ITEM 2.12.e) DA ESPECIFICAÇÃO TÉCNICA: 8,71 (LARGURA) x 15,42 (COMPRIMENTO) x 0,1 (ESPESSURA CAMADA DE BRITA) | E29: =SINTÉTICO!F45 -> 13.43
A30: =SINTÉTICO!A46 -> 8.4 | B30: =SINTÉTICO!D46 -> PORTAO FERRO ABRIR COM PINTURA EM DUAS FACES | C30: =SINTÉTICO!E46 -> M² | D30: 1,50 (LARGURA) X 2,00 (ALTURA) | E30: =SINTÉTICO!F46 -> 3
A31: =SINTÉTICO!A49 -> VALOR GLOBAL TOTAL COM BDI | D31: =SINTÉTICO!J49 -> 0

Sheet BDI
D2: Ministério do Desenvolvimento Regional - MDR
D3: Companhia de Desenvolvimento dos Vales do São Francisco e do Parnaíba
A5: DETALHAMENTO DO BDI
A6: Serviços
B7: 1 | C7: Administração Central
B9: 2 | C9: Impostos e Taxas (I)
B10: 2.1 | C10: ISS
B11: 2.2 | C11: PIS
B12: 2.3 | C12: COFINS
B14: 3 | C14: Seguro + Garantia
B16: 4 | C16: Risco
B18: 5 | C18: Despesa Financeira
B20: 6 | C20: Lucro
B22: BDI (%) | L22: =(((1+L7+L14+L16)*(1+L18)*(1+L20))/(1-L9))-1 -> 0
B23: Fonte: Acórdão n° 2622/2013 - TCU - Plenário
A25: Notas: | C25: Pode haver garantia desde que previsto no Edital da licitação e no contrato de execução.
C26: Podem ser aceitos outros percentuais de ISSQN desde que devidamente embasados na legislação municipal.

Sheet CRONOGRAMA
C2: Ministério do Desenvolvimento Regional - MDR
C3: Companhia de Desenvolvimento dos Vales do São Francisco e do Parnaíba
A5: CRONOGRAMA FÍSICO FINANCEIRO
A7: OBJETO: FORNECIMENTO, TRANSPORTE, INSTALAÇÃO E HOMOLOGAÇÃO, POR SISTEMA DE REGISTRO DE PREÇOS (SRP), DE SISTEMAS DE GERAÇÃO DE ENERGIA SOLAR FOTOVOLTAICA ON-GRID, DESTINADOS A ATENDER MUNICÍPIOS DA ÁREA DE ATUAÇÃO DA 11ª SUPERINTENDÊNCIA REGIONAL DA CODEVASF NO ESTADO DO AMAPÁ
A10: GRUPO Nº | B10: DESCRIÇÃO | C10: VALOR | D10: DIAS | E10: DIAS | F10: DIAS | G10: DIAS | H10: DIAS | I10: DIAS
D11: 30 | E11: 60 | F11: =E11+30 -> 90 | G11: 120 | H11: 150 | I11: =H11+30 -> 180
A12: 1 | B12: SISTEMA DE GERAÇÃO FOTOVOLTAICA ON-GRID, COM ESTRUTURA PARA SOLO, COM POTÊNCIA MÍNIMA DE 4,5 KWP + SERVIÇOS COMPLEMENTARES AO SISTEMA | C12: =RESUMO!O12 -> 0 | D12: =$C$12*D14 -> 0 | E12: 0 | F12: 0 | G12: 0 | H12: 0 | I12: 0 | J12: =SUM(D12:I12) -> 0
C14: =SUM(D14:I14) -> 0
A16: 2 | B16: SISTEMA DE GERAÇÃO FOTOVOLTAICA ON-GRID, COM ESTRUTURA PARA SOLO, COM POTÊNCIA MÍNIMA DE 9,0 KWP + SERVIÇOS COMPLEMENTARES AO SISTEMA | C16: =RESUMO!O15 -> 0 | D16: =$C$16*D18 -> 0 | E16: 0 | F16: 0 | G16: 0 | H16: 0 | I16: 0 | J16: =SUM(D16:I16) -> 0
C18: =SUM(D18:I18) -> 0
A20: 3 | B20: SISTEMA DE GERAÇÃO FOTOVOLTAICA ON-GRID, COM ESTRUTURA PARA SOLO, COM POTÊNCIA MÍNIMA DE 13,5 KWP + SERVIÇOS COMPLEMENTARES AO SISTEMA | C20: =RESUMO!O18 -> 0 | D20: =$C$20*D22 -> 0 | E20: 0 | F20: 0 | G20: 0 | H20: 0 | I20: 0 | J20: =SUM(D20:I20) -> 0
C22: =SUM(D22:I22) -> 0
A24: 4 | B24: SISTEMA DE GERAÇÃO FOTOVOLTAICA ON-GRID, COM ESTRUTURA PARA SOLO, COM POTÊNCIA MÍNIMA DE 18,0 KWP + SERVIÇOS COMPLEMENTARES AO SISTEMA | C24: =RESUMO!O21 -> 0 | D24: =$C$24*D26 -> 0 | E24: 0 | F24: 0 | G24: 0 | H24: 0 | I24: 0 | J24: 0
C26: =SUM(D26:I26) -> 0
A28: Custo mensal | C28: =RESUMO!O24 -> 0 | D28: =TRUNC(D12+D16+D20+D24,3) -> 0 | E28: 0 | F28: 0 | G28: 0 | H28: 0 | I28: 0 | J28: =SUM(D28:I28)-C28 -> 0
A29: Total Mensal (%) | D29: =ROUND(D28/$C$28,3) ->  | E29: =ROUND(E28/$C$28,3) -> 
A30: Custo acumulado | D30: =D28 -> 0 | E30: =E28+D30 -> 0 | F30: =F28+E30 -> 0 | G30: 0 | H30: 0 | I30: 0 | J30: =I30-C28 -> 0
A31: Total Acumulado (%) | D31: =D29 ->  | E31: =E29+D31 ->  | F31: =F29+E31 -> 

Sheet CPUs
C2: Ministério do Desenvolvimento Regional - MDR
C3: Companhia de Desenvolvimento dos Vales do São Francisco e do Parnaíba
A5: OBJETO: FORNECIMENTO, TRANSPORTE, INSTALAÇÃO E HOMOLOGAÇÃO, POR SISTEMA DE REGISTRO DE PREÇOS (SRP), DE SISTEMAS DE GERAÇÃO DE ENERGIA SOLAR FOTOVOLTAICA ON-GRID, DESTINADOS A ATENDER MUNICÍPIOS DA ÁREA DE ATUAÇÃO DA 11ª SUPERINTENDÊNCIA REGIONAL DA CODEVASF NO ESTADO DO AMAPÁ
A11: COMPOSIÇÕES PRÓPRIAS
A13: CPU 01 - TRANSPORTE DE MÃO DE OBRA, MATERIAIS E EQUIPAMENTOS PARA EXECUÇÃO DOS SERVIÇOS COMPLEMENTARES
A14: CÓDIGO | B14: DESCRIÇÃO | E14: FONTE | F14: UNID | G14: COEFICIENTE | H14: PREÇO UNITÁRIO | I14: TOTAL
A15: 5894 | B15: CAMINHÃO TOCO, PESO BRUTO TOTAL 16.000 KG, CARGA ÚTIL MÁXIMA DE 10.685 KG, DISTÂNCIA ENTRE EIXOS 4,80 M, POTÊNCIA 189 CV EXCLUSIVE CARROCERIA - CHP DIURNO. AF_06/2014 | C15: CAMINHÃO TOCO, PESO BRUTO TOTAL 16.000 KG, CARGA ÚTIL MÁXIMA DE 10.685 KG, DISTÂNCIA ENTRE EIXOS 4,80 M, POTÊNCIA 189 CV EXCLUSIVE CARROCERIA - CHP DIURNO. AF_06/2014 | D15: CAMINHÃO TOCO, PESO BRUTO TOTAL 16.000 KG, CARGA ÚTIL MÁXIMA DE 10.685 KG, DISTÂNCIA ENTRE EIXOS 4,80 M, POTÊNCIA 189 CV EXCLUSIVE CARROCERIA - CHP DIURNO. AF_06/2014 | E15: SINAPI | F15: CHP | G15: 0.01 | H15: 218.3 | I15: 2.18
A16: 88282 | B16: MOTORISTA DE CAMINHÃO COM ENCARGOS COMPLEMENTARES | C16: MOTORISTA DE CAMINHÃO COM ENCARGOS COMPLEMENTARES | D16: MOTORISTA DE CAMINHÃO COM ENCARGOS COMPLEMENTARES | E16: SINAPI | F16: H | G16: 0.01 | H16: 26.25 | I16: 0.26
A17: 88316 | B17: SERVENTE COM ENCARGOS COMPLEMENTARES | C17: SERVENTE COM ENCARGOS COMPLEMENTARES | D17: SERVENTE COM ENCARGOS COMPLEMENTARES | E17: SINAPI | F17: H | G17: 0.1 | H17: 19.85 | I17: 1.98
A18: 00004227 | B18: OLEO LUBRIFICANTE MINERAL MONOVISCOSO, SAE 40, PARA MOTORES DE EQUIPAMENTOS PESADOS (CAMINHOES, TRATORES, RETROS E ETC) | C18: OLEO LUBRIFICANTE MINERAL MONOVISCOSO, SAE 40, PARA MOTORES DE EQUIPAMENTOS PESADOS (CAMINHOES, TRATORES, RETROS E ETC) | D18: OLEO LUBRIFICANTE MINERAL MONOVISCOSO, SAE 40, PARA MOTORES DE EQUIPAMENTOS PESADOS (CAMINHOES, TRATORES, RETROS E ETC) | E18: SINAPI | F18: L | G18: 0.005 | H18: 29.8 | I18: 0.14
A19: 00004221 | B19: OLEO DIESEL COMBUSTIVEL COMUM METROPOLITANO S-10 OU S-500 | C19: OLEO DIESEL COMBUSTIVEL COMUM METROPOLITANO S-10 OU S-500 | D19: OLEO DIESEL COMBUSTIVEL COMUM METROPOLITANO S-10 OU S-500 | E19: SINAPI | F19: L | G19: 0.3 | H19: 6.39 | I19: =1.91 -> 1.91
A20: TOTAL SEM BDI | I20: 6.47
A22: CPU 02 - CERCA COM MOURÕES DE CONCRETO, RETO, H=2,30 M, ESPAÇAMENTO DE 2,5 M, CRAVADOS 0,5 M, ESCORAS DE 10 X 10 CM NOS CANTOS, COM 8 FIOS DE ARAME FARPADO Nº 14 CLASSE 250 - FORNECIMENTO E INSTALAÇÃO
A23: CÓDIGO | B23: DESCRIÇÃO | E23: FONTE | F23: UNID | G23: COEFICIENTE | H23: PREÇO UNITÁRIO | I23: TOTAL
A24: 88309 | B24: PEDREIRO COM ENCARGOS COMPLEMENTARES | C24: PEDREIRO COM ENCARGOS COMPLEMENTARES | D24: PEDREIRO COM ENCARGOS COMPLEMENTARES | E24: SINAPI | F24: H | G24: 0.528 | H24: 26.21 | I24: 13.83
A25: 94962 | B25: CONCRETO MAGRO PARA LASTRO, TRAÇO 1:4,5:4,5 (EM MASSA SECA DE CIMENTO/ AREIA MÉDIA/ BRITA 1) - PREPARO MECÂNICO COM BETONEIRA 400 L. AF_05/2021 | C25: CONCRETO MAGRO PARA LASTRO, TRAÇO 1:4,5:4,5 (EM MASSA SECA DE CIMENTO/ AREIA MÉDIA/ BRITA 1) - PREPARO MECÂNICO COM BETONEIRA 400 L. AF_05/2021 | D25: CONCRETO MAGRO PARA LASTRO, TRAÇO 1:4,5:4,5 (EM MASSA SECA DE CIMENTO/ AREIA MÉDIA/ BRITA 1) - PREPARO MECÂNICO COM BETONEIRA 400 L. AF_05/2021 | E25: SINAPI | F25: M³ | G25: 0.009 | H25: 610.42 | I25: 5.49
A26: 88316 | B26: SERVENTE COM ENCARGOS COMPLEMENTARES | C26: SERVENTE COM ENCARGOS COMPLEMENTARES | D26: SERVENTE COM ENCARGOS COMPLEMENTARES | E26: SINAPI | F26: H | G26: 0.528 | H26: 19.85 | I26: 10.48
A27: 00004107 | B27: MOURAO DE CONCRETO RETO, SECAO QUADRADA *10 X 10* CM, H= *2,30* M | C27: MOURAO DE CONCRETO RETO, SECAO QUADRADA *10 X 10* CM, H= *2,30* M | D27: MOURAO DE CONCRETO RETO, SECAO QUADRADA *10 X 10* CM, H= *2,30* M | E27: SINAPI | F27: UN | G27: 0.4 | H27: 73.32 | I27: 29.32
A28: 00043130 | B28: ARAME GALVANIZADO 12 BWG, D = 2,76 MM (0,048 KG/M) OU 14 BWG, D = 2,11 MM (0,026 KG/M) | C28: ARAME GALVANIZADO 12 BWG, D = 2,76 MM (0,048 KG/M) OU 14 BWG, D = 2,11 MM (0,026 KG/M) | D28: ARAME GALVANIZADO 12 BWG, D = 2,76 MM (0,048 KG/M) OU 14 BWG, D = 2,11 MM (0,026 KG/M) | E28: SINAPI | F28: KG | G28: 0.287 | H28: 26 | I28: 7.46
A29: 00000339 | B29: ARAME FARPADO GALVANIZADO, 14 BWG (2,11 MM), CLASSE 250 | C29: ARAME FARPADO GALVANIZADO, 14 BWG (2,11 MM), CLASSE 250 | D29: ARAME FARPADO GALVANIZADO, 14 BWG (2,11 MM), CLASSE 250 | E29: SINAPI | F29: M | G29: 8 | H29: 1.59 | I29: 12.72
A30: 00004111 | B30: ESCORA PRE-MOLDADA EM CONCRETO, *10 X 10* CM, H = 2,30M | C30: ESCORA PRE-MOLDADA EM CONCRETO, *10 X 10* CM, H = 2,30M | D30: ESCORA PRE-MOLDADA EM CONCRETO, *10 X 10* CM, H = 2,30M | E30: SINAPI | F30: UN | G30: 0.16 | H30: 61.52 | I30: =G30*H30 -> 9.8432
A31: TOTAL SEM BDI | I31: =SUM(I24:I30) -> 89.1432
